{"text_format":"3","workbook":"xlsx","n_sheets":1,"sheets":["Årskalender"],"not_rendered":{"images":4,"defined_names":14},"read":"whole","date_system":"1900"}

{"sheet":"Årskalender","index":0,"n_rows":55,"n_cols":21,"rows_kept":55,"merged":[[0,2,0,5]]}
[null,null,{"$f":"YEAR(TODAY())","v":2019},{"$nulls":17},"VIKTIGA DATUM"]
[]
[null,null,"JANUARI",{"$nulls":7},"FEBRUARI",{"$nulls":9},"1 JANUARI"]
[null,null,"M","T","O","T","F","L","S",null,"M","T","O","T","F","L","S",{"$nulls":3},"NYÅRSDAGEN"]
[null,null,{"$f":"IF(DAY(JanSön1)=1,\"\",IF(AND(YEAR(JanSön1+1)=Kalenderår,MONTH(JanSön1+1)=1),JanSön1+1,\"\"))","v":""},{"$f":"IF(DAY(JanSön1)=1,\"\",IF(AND(YEAR(JanSön1+2)=Kalenderår,MONTH(JanSön1+2)=1),JanSön1+2,\"\"))","v":"2019-01-01"},{"$f":"IF(DAY(JanSön1)=1,\"\",IF(AND(YEAR(JanSön1+3)=Kalenderår,MONTH(JanSön1+3)=1),JanSön1+3,\"\"))","v":"2019-01-02"},{"$f":"IF(DAY(JanSön1)=1,\"\",IF(AND(YEAR(JanSön1+4)=Kalenderår,MONTH(JanSön1+4)=1),JanSön1+4,\"\"))","v":"2019-01-03"},{"$f":"IF(DAY(JanSön1)=1,\"\",IF(AND(YEAR(JanSön1+5)=Kalenderår,MONTH(JanSön1+5)=1),JanSön1+5,\"\"))","v":"2019-01-04"},{"$f":"IF(DAY(JanSön1)=1,\"\",IF(AND(YEAR(JanSön1+6)=Kalenderår,MONTH(JanSön1+6)=1),JanSön1+6,\"\"))","v":"2019-01-05"},{"$f":"IF(DAY(JanSön1)=1,IF(AND(YEAR(JanSön1)=Kalenderår,MONTH(JanSön1)=1),JanSön1,\"\"),IF(AND(YEAR(JanSön1+7)=Kalenderår,MONTH(JanSön1+7)=1),JanSön1+7,\"\"))","v":"2019-01-06"},null,{"$f":"IF(DAY(FebSön1)=1,\"\",IF(AND(YEAR(FebSön1+1)=Kalenderår,MONTH(FebSön1+1)=2),FebSön1+1,\"\"))","v":""},{"$f":"IF(DAY(FebSön1)=1,\"\",IF(AND(YEAR(FebSön1+2)=Kalenderår,MONTH(FebSön1+2)=2),FebSön1+2,\"\"))","v":""},{"$f":"IF(DAY(FebSön1)=1,\"\",IF(AND(YEAR(FebSön1+3)=Kalenderår,MONTH(FebSön1+3)=2),FebSön1+3,\"\"))","v":""},{"$f":"IF(DAY(FebSön1)=1,\"\",IF(AND(YEAR(FebSön1+4)=Kalenderår,MONTH(FebSön1+4)=2),FebSön1+4,\"\"))","v":""},{"$f":"IF(DAY(FebSön1)=1,\"\",IF(AND(YEAR(FebSön1+5)=Kalenderår,MONTH(FebSön1+5)=2),FebSön1+5,\"\"))","v":"2019-02-01"},{"$f":"IF(DAY(FebSön1)=1,\"\",IF(AND(YEAR(FebSön1+6)=Kalenderår,MONTH(FebSön1+6)=2),FebSön1+6,\"\"))","v":"2019-02-02"},{"$f":"IF(DAY(FebSön1)=1,IF(AND(YEAR(FebSön1)=Kalenderår,MONTH(FebSön1)=2),FebSön1,\"\"),IF(AND(YEAR(FebSön1+7)=Kalenderår,MONTH(FebSön1+7)=2),FebSön1+7,\"\"))","v":"2019-02-03"}]
[null,null,{"$f":"IF(DAY(JanSön1)=1,IF(AND(YEAR(JanSön1+1)=Kalenderår,MONTH(JanSön1+1)=1),JanSön1+1,\"\"),IF(AND(YEAR(JanSön1+8)=Kalenderår,MONTH(JanSön1+8)=1),JanSön1+8,\"\"))","v":"2019-01-07"},{"$f":"IF(DAY(JanSön1)=1,IF(AND(YEAR(JanSön1+2)=Kalenderår,MONTH(JanSön1+2)=1),JanSön1+2,\"\"),IF(AND(YEAR(JanSön1+9)=Kalenderår,MONTH(JanSön1+9)=1),JanSön1+9,\"\"))","v":"2019-01-08"},{"$f":"IF(DAY(JanSön1)=1,IF(AND(YEAR(JanSön1+3)=Kalenderår,MONTH(JanSön1+3)=1),JanSön1+3,\"\"),IF(AND(YEAR(JanSön1+10)=Kalenderår,MONTH(JanSön1+10)=1),JanSön1+10,\"\"))","v":"2019-01-09"},{"$f":"IF(DAY(JanSön1)=1,IF(AND(YEAR(JanSön1+4)=Kalenderår,MONTH(JanSön1+4)=1),JanSön1+4,\"\"),IF(AND(YEAR(JanSön1+11)=Kalenderår,MONTH(JanSön1+11)=1),JanSön1+11,\"\"))","v":"2019-01-10"},{"$f":"IF(DAY(JanSön1)=1,IF(AND(YEAR(JanSön1+5)=Kalenderår,MONTH(JanSön1+5)=1),JanSön1+5,\"\"),IF(AND(YEAR(JanSön1+12)=Kalenderår,MONTH(JanSön1+12)=1),JanSön1+12,\"\"))","v":"2019-01-11"},{"$f":"IF(DAY(JanSön1)=1,IF(AND(YEAR(JanSön1+6)=Kalenderår,MONTH(JanSön1+6)=1),JanSön1+6,\"\"),IF(AND(YEAR(JanSön1+13)=Kalenderår,MONTH(JanSön1+13)=1),JanSön1+13,\"\"))","v":"2019-01-12"},{"$f":"IF(DAY(JanSön1)=1,IF(AND(YEAR(JanSön1+7)=Kalenderår,MONTH(JanSön1+7)=1),JanSön1+7,\"\"),IF(AND(YEAR(JanSön1+14)=Kalenderår,MONTH(JanSön1+14)=1),JanSön1+14,\"\"))","v":"2019-01-13"},null,{"$f":"IF(DAY(FebSön1)=1,IF(AND(YEAR(FebSön1+1)=Kalenderår,MONTH(FebSön1+1)=2),FebSön1+1,\"\"),IF(AND(YEAR(FebSön1+8)=Kalenderår,MONTH(FebSön1+8)=2),FebSön1+8,\"\"))","v":"2019-02-04"},{"$f":"IF(DAY(FebSön1)=1,IF(AND(YEAR(FebSön1+2)=Kalenderår,MONTH(FebSön1+2)=2),FebSön1+2,\"\"),IF(AND(YEAR(FebSön1+9)=Kalenderår,MONTH(FebSön1+9)=2),FebSön1+9,\"\"))","v":"2019-02-05"},{"$f":"IF(DAY(FebSön1)=1,IF(AND(YEAR(FebSön1+3)=Kalenderår,MONTH(FebSön1+3)=2),FebSön1+3,\"\"),IF(AND(YEAR(FebSön1+10)=Kalenderår,MONTH(FebSön1+10)=2),FebSön1+10,\"\"))","v":"2019-02-06"},{"$f":"IF(DAY(FebSön1)=1,IF(AND(YEAR(FebSön1+4)=Kalenderår,MONTH(FebSön1+4)=2),FebSön1+4,\"\"),IF(AND(YEAR(FebSön1+11)=Kalenderår,MONTH(FebSön1+11)=2),FebSön1+11,\"\"))","v":"2019-02-07"},{"$f":"IF(DAY(FebSön1)=1,IF(AND(YEAR(FebSön1+5)=Kalenderår,MONTH(FebSön1+5)=2),FebSön1+5,\"\"),IF(AND(YEAR(FebSön1+12)=Kalenderår,MONTH(FebSön1+12)=2),FebSön1+12,\"\"))","v":"2019-02-08"},{"$f":"IF(DAY(FebSön1)=1,IF(AND(YEAR(FebSön1+6)=Kalenderår,MONTH(FebSön1+6)=2),FebSön1+6,\"\"),IF(AND(YEAR(FebSön1+13)=Kalenderår,MONTH(FebSön1+13)=2),FebSön1+13,\"\"))","v":"2019-02-09"},{"$f":"IF(DAY(FebSön1)=1,IF(AND(YEAR(FebSön1+7)=Kalenderår,MONTH(FebSön1+7)=2),FebSön1+7,\"\"),IF(AND(YEAR(FebSön1+14)=Kalenderår,MONTH(FebSön1+14)=2),FebSön1+14,\"\"))","v":"2019-02-10"},{"$nulls":3},"14 FEBRUARI"]
[null,null,{"$f":"IF(DAY(JanSön1)=1,IF(AND(YEAR(JanSön1+8)=Kalenderår,MONTH(JanSön1+8)=1),JanSön1+8,\"\"),IF(AND(YEAR(JanSön1+15)=Kalenderår,MONTH(JanSön1+15)=1),JanSön1+15,\"\"))","v":"2019-01-14"},{"$f":"IF(DAY(JanSön1)=1,IF(AND(YEAR(JanSön1+9)=Kalenderår,MONTH(JanSön1+9)=1),JanSön1+9,\"\"),IF(AND(YEAR(JanSön1+16)=Kalenderår,MONTH(JanSön1+16)=1),JanSön1+16,\"\"))","v":"2019-01-15"},{"$f":"IF(DAY(JanSön1)=1,IF(AND(YEAR(JanSön1+10)=Kalenderår,MONTH(JanSön1+10)=1),JanSön1+10,\"\"),IF(AND(YEAR(JanSön1+17)=Kalenderår,MONTH(JanSön1+17)=1),JanSön1+17,\"\"))","v":"2019-01-16"},{"$f":"IF(DAY(JanSön1)=1,IF(AND(YEAR(JanSön1+11)=Kalenderår,MONTH(JanSön1+11)=1),JanSön1+11,\"\"),IF(AND(YEAR(JanSön1+18)=Kalenderår,MONTH(JanSön1+18)=1),JanSön1+18,\"\"))","v":"2019-01-17"},{"$f":"IF(DAY(JanSön1)=1,IF(AND(YEAR(JanSön1+12)=Kalenderår,MONTH(JanSön1+12)=1),JanSön1+12,\"\"),IF(AND(YEAR(JanSön1+19)=Kalenderår,MONTH(JanSön1+19)=1),JanSön1+19,\"\"))","v":"2019-01-18"},{"$f":"IF(DAY(JanSön1)=1,IF(AND(YEAR(JanSön1+13)=Kalenderår,MONTH(JanSön1+13)=1),JanSön1+13,\"\"),IF(AND(YEAR(JanSön1+20)=Kalenderår,MONTH(JanSön1+20)=1),JanSön1+20,\"\"))","v":"2019-01-19"},{"$f":"IF(DAY(JanSön1)=1,IF(AND(YEAR(JanSön1+14)=Kalenderår,MONTH(JanSön1+14)=1),JanSön1+14,\"\"),IF(AND(YEAR(JanSön1+21)=Kalenderår,MONTH(JanSön1+21)=1),JanSön1+21,\"\"))","v":"2019-01-20"},null,{"$f":"IF(DAY(FebSön1)=1,IF(AND(YEAR(FebSön1+8)=Kalenderår,MONTH(FebSön1+8)=2),FebSön1+8,\"\"),IF(AND(YEAR(FebSön1+15)=Kalenderår,MONTH(FebSön1+15)=2),FebSön1+15,\"\"))","v":"2019-02-11"},{"$f":"IF(DAY(FebSön1)=1,IF(AND(YEAR(FebSön1+9)=Kalenderår,MONTH(FebSön1+9)=2),FebSön1+9,\"\"),IF(AND(YEAR(FebSön1+16)=Kalenderår,MONTH(FebSön1+16)=2),FebSön1+16,\"\"))","v":"2019-02-12"},{"$f":"IF(DAY(FebSön1)=1,IF(AND(YEAR(FebSön1+10)=Kalenderår,MONTH(FebSön1+10)=2),FebSön1+10,\"\"),IF(AND(YEAR(FebSön1+17)=Kalenderår,MONTH(FebSön1+17)=2),FebSön1+17,\"\"))","v":"2019-02-13"},{"$f":"IF(DAY(FebSön1)=1,IF(AND(YEAR(FebSön1+11)=Kalenderår,MONTH(FebSön1+11)=2),FebSön1+11,\"\"),IF(AND(YEAR(FebSön1+18)=Kalenderår,MONTH(FebSön1+18)=2),FebSön1+18,\"\"))","v":"2019-02-14"},{"$f":"IF(DAY(FebSön1)=1,IF(AND(YEAR(FebSön1+12)=Kalenderår,MONTH(FebSön1+12)=2),FebSön1+12,\"\"),IF(AND(YEAR(FebSön1+19)=Kalenderår,MONTH(FebSön1+19)=2),FebSön1+19,\"\"))","v":"2019-02-15"},{"$f":"IF(DAY(FebSön1)=1,IF(AND(YEAR(FebSön1+13)=Kalenderår,MONTH(FebSön1+13)=2),FebSön1+13,\"\"),IF(AND(YEAR(FebSön1+20)=Kalenderår,MONTH(FebSön1+20)=2),FebSön1+20,\"\"))","v":"2019-02-16"},{"$f":"IF(DAY(FebSön1)=1,IF(AND(YEAR(FebSön1+14)=Kalenderår,MONTH(FebSön1+14)=2),FebSön1+14,\"\"),IF(AND(YEAR(FebSön1+21)=Kalenderår,MONTH(FebSön1+21)=2),FebSön1+21,\"\"))","v":"2019-02-17"},{"$nulls":3},"ALLA HJÄRTANS DAG"]
[null,null,{"$f":"IF(DAY(JanSön1)=1,IF(AND(YEAR(JanSön1+15)=Kalenderår,MONTH(JanSön1+15)=1),JanSön1+15,\"\"),IF(AND(YEAR(JanSön1+22)=Kalenderår,MONTH(JanSön1+22)=1),JanSön1+22,\"\"))","v":"2019-01-21"},{"$f":"IF(DAY(JanSön1)=1,IF(AND(YEAR(JanSön1+16)=Kalenderår,MONTH(JanSön1+16)=1),JanSön1+16,\"\"),IF(AND(YEAR(JanSön1+23)=Kalenderår,MONTH(JanSön1+23)=1),JanSön1+23,\"\"))","v":"2019-01-22"},{"$f":"IF(DAY(JanSön1)=1,IF(AND(YEAR(JanSön1+17)=Kalenderår,MONTH(JanSön1+17)=1),JanSön1+17,\"\"),IF(AND(YEAR(JanSön1+24)=Kalenderår,MONTH(JanSön1+24)=1),JanSön1+24,\"\"))","v":"2019-01-23"},{"$f":"IF(DAY(JanSön1)=1,IF(AND(YEAR(JanSön1+18)=Kalenderår,MONTH(JanSön1+18)=1),JanSön1+18,\"\"),IF(AND(YEAR(JanSön1+25)=Kalenderår,MONTH(JanSön1+25)=1),JanSön1+25,\"\"))","v":"2019-01-24"},{"$f":"IF(DAY(JanSön1)=1,IF(AND(YEAR(JanSön1+19)=Kalenderår,MONTH(JanSön1+19)=1),JanSön1+19,\"\"),IF(AND(YEAR(JanSön1+26)=Kalenderår,MONTH(JanSön1+26)=1),JanSön1+26,\"\"))","v":"2019-01-25"},{"$f":"IF(DAY(JanSön1)=1,IF(AND(YEAR(JanSön1+20)=Kalenderår,MONTH(JanSön1+20)=1),JanSön1+20,\"\"),IF(AND(YEAR(JanSön1+27)=Kalenderår,MONTH(JanSön1+27)=1),JanSön1+27,\"\"))","v":"2019-01-26"},{"$f":"IF(DAY(JanSön1)=1,IF(AND(YEAR(JanSön1+21)=Kalenderår,MONTH(JanSön1+21)=1),JanSön1+21,\"\"),IF(AND(YEAR(JanSön1+28)=Kalenderår,MONTH(JanSön1+28)=1),JanSön1+28,\"\"))","v":"2019-01-27"},null,{"$f":"IF(DAY(FebSön1)=1,IF(AND(YEAR(FebSön1+15)=Kalenderår,MONTH(FebSön1+15)=2),FebSön1+15,\"\"),IF(AND(YEAR(FebSön1+22)=Kalenderår,MONTH(FebSön1+22)=2),FebSön1+22,\"\"))","v":"2019-02-18"},{"$f":"IF(DAY(FebSön1)=1,IF(AND(YEAR(FebSön1+16)=Kalenderår,MONTH(FebSön1+16)=2),FebSön1+16,\"\"),IF(AND(YEAR(FebSön1+23)=Kalenderår,MONTH(FebSön1+23)=2),FebSön1+23,\"\"))","v":"2019-02-19"},{"$f":"IF(DAY(FebSön1)=1,IF(AND(YEAR(FebSön1+17)=Kalenderår,MONTH(FebSön1+17)=2),FebSön1+17,\"\"),IF(AND(YEAR(FebSön1+24)=Kalenderår,MONTH(FebSön1+24)=2),FebSön1+24,\"\"))","v":"2019-02-20"},{"$f":"IF(DAY(FebSön1)=1,IF(AND(YEAR(FebSön1+18)=Kalenderår,MONTH(FebSön1+18)=2),FebSön1+18,\"\"),IF(AND(YEAR(FebSön1+25)=Kalenderår,MONTH(FebSön1+25)=2),FebSön1+25,\"\"))","v":"2019-02-21"},{"$f":"IF(DAY(FebSön1)=1,IF(AND(YEAR(FebSön1+19)=Kalenderår,MONTH(FebSön1+19)=2),FebSön1+19,\"\"),IF(AND(YEAR(FebSön1+26)=Kalenderår,MONTH(FebSön1+26)=2),FebSön1+26,\"\"))","v":"2019-02-22"},{"$f":"IF(DAY(FebSön1)=1,IF(AND(YEAR(FebSön1+20)=Kalenderår,MONTH(FebSön1+20)=2),FebSön1+20,\"\"),IF(AND(YEAR(FebSön1+27)=Kalenderår,MONTH(FebSön1+27)=2),FebSön1+27,\"\"))","v":"2019-02-23"},{"$f":"IF(DAY(FebSön1)=1,IF(AND(YEAR(FebSön1+21)=Kalenderår,MONTH(FebSön1+21)=2),FebSön1+21,\"\"),IF(AND(YEAR(FebSön1+28)=Kalenderår,MONTH(FebSön1+28)=2),FebSön1+28,\"\"))","v":"2019-02-24"}]
[null,null,{"$f":"IF(DAY(JanSön1)=1,IF(AND(YEAR(JanSön1+22)=Kalenderår,MONTH(JanSön1+22)=1),JanSön1+22,\"\"),IF(AND(YEAR(JanSön1+29)=Kalenderår,MONTH(JanSön1+29)=1),JanSön1+29,\"\"))","v":"2019-01-28"},{"$f":"IF(DAY(JanSön1)=1,IF(AND(YEAR(JanSön1+23)=Kalenderår,MONTH(JanSön1+23)=1),JanSön1+23,\"\"),IF(AND(YEAR(JanSön1+30)=Kalenderår,MONTH(JanSön1+30)=1),JanSön1+30,\"\"))","v":"2019-01-29"},{"$f":"IF(DAY(JanSön1)=1,IF(AND(YEAR(JanSön1+24)=Kalenderår,MONTH(JanSön1+24)=1),JanSön1+24,\"\"),IF(AND(YEAR(JanSön1+31)=Kalenderår,MONTH(JanSön1+31)=1),JanSön1+31,\"\"))","v":"2019-01-30"},{"$f":"IF(DAY(JanSön1)=1,IF(AND(YEAR(JanSön1+25)=Kalenderår,MONTH(JanSön1+25)=1),JanSön1+25,\"\"),IF(AND(YEAR(JanSön1+32)=Kalenderår,MONTH(JanSön1+32)=1),JanSön1+32,\"\"))","v":"2019-01-31"},{"$f":"IF(DAY(JanSön1)=1,IF(AND(YEAR(JanSön1+26)=Kalenderår,MONTH(JanSön1+26)=1),JanSön1+26,\"\"),IF(AND(YEAR(JanSön1+33)=Kalenderår,MONTH(JanSön1+33)=1),JanSön1+33,\"\"))","v":""},{"$f":"IF(DAY(JanSön1)=1,IF(AND(YEAR(JanSön1+27)=Kalenderår,MONTH(JanSön1+27)=1),JanSön1+27,\"\"),IF(AND(YEAR(JanSön1+34)=Kalenderår,MONTH(JanSön1+34)=1),JanSön1+34,\"\"))","v":""},{"$f":"IF(DAY(JanSön1)=1,IF(AND(YEAR(JanSön1+28)=Kalenderår,MONTH(JanSön1+28)=1),JanSön1+28,\"\"),IF(AND(YEAR(JanSön1+35)=Kalenderår,MONTH(JanSön1+35)=1),JanSön1+35,\"\"))","v":""},null,{"$f":"IF(DAY(FebSön1)=1,IF(AND(YEAR(FebSön1+22)=Kalenderår,MONTH(FebSön1+22)=2),FebSön1+22,\"\"),IF(AND(YEAR(FebSön1+29)=Kalenderår,MONTH(FebSön1+29)=2),FebSön1+29,\"\"))","v":"2019-02-25"},{"$f":"IF(DAY(FebSön1)=1,IF(AND(YEAR(FebSön1+23)=Kalenderår,MONTH(FebSön1+23)=2),FebSön1+23,\"\"),IF(AND(YEAR(FebSön1+30)=Kalenderår,MONTH(FebSön1+30)=2),FebSön1+30,\"\"))","v":"2019-02-26"},{"$f":"IF(DAY(FebSön1)=1,IF(AND(YEAR(FebSön1+24)=Kalenderår,MONTH(FebSön1+24)=2),FebSön1+24,\"\"),IF(AND(YEAR(FebSön1+31)=Kalenderår,MONTH(FebSön1+31)=2),FebSön1+31,\"\"))","v":"2019-02-27"},{"$f":"IF(DAY(FebSön1)=1,IF(AND(YEAR(FebSön1+25)=Kalenderår,MONTH(FebSön1+25)=2),FebSön1+25,\"\"),IF(AND(YEAR(FebSön1+32)=Kalenderår,MONTH(FebSön1+32)=2),FebSön1+32,\"\"))","v":"2019-02-28"},{"$f":"IF(DAY(FebSön1)=1,IF(AND(YEAR(FebSön1+26)=Kalenderår,MONTH(FebSön1+26)=2),FebSön1+26,\"\"),IF(AND(YEAR(FebSön1+33)=Kalenderår,MONTH(FebSön1+33)=2),FebSön1+33,\"\"))","v":""},{"$f":"IF(DAY(FebSön1)=1,IF(AND(YEAR(FebSön1+27)=Kalenderår,MONTH(FebSön1+27)=2),FebSön1+27,\"\"),IF(AND(YEAR(FebSön1+34)=Kalenderår,MONTH(FebSön1+34)=2),FebSön1+34,\"\"))","v":""},{"$f":"IF(DAY(FebSön1)=1,IF(AND(YEAR(FebSön1+28)=Kalenderår,MONTH(FebSön1+28)=2),FebSön1+28,\"\"),IF(AND(YEAR(FebSön1+35)=Kalenderår,MONTH(FebSön1+35)=2),FebSön1+35,\"\"))","v":""},{"$nulls":3},"22 FEBRUARI"]
[null,null,{"$f":"IF(DAY(JanSön1)=1,IF(AND(YEAR(JanSön1+29)=Kalenderår,MONTH(JanSön1+29)=1),JanSön1+29,\"\"),IF(AND(YEAR(JanSön1+36)=Kalenderår,MONTH(JanSön1+36)=1),JanSön1+36,\"\"))","v":""},{"$f":"IF(DAY(JanSön1)=1,IF(AND(YEAR(JanSön1+30)=Kalenderår,MONTH(JanSön1+30)=1),JanSön1+30,\"\"),IF(AND(YEAR(JanSön1+37)=Kalenderår,MONTH(JanSön1+37)=1),JanSön1+37,\"\"))","v":""},{"$f":"IF(DAY(JanSön1)=1,IF(AND(YEAR(JanSön1+31)=Kalenderår,MONTH(JanSön1+31)=1),JanSön1+31,\"\"),IF(AND(YEAR(JanSön1+38)=Kalenderår,MONTH(JanSön1+38)=1),JanSön1+38,\"\"))","v":""},{"$f":"IF(DAY(JanSön1)=1,IF(AND(YEAR(JanSön1+32)=Kalenderår,MONTH(JanSön1+32)=1),JanSön1+32,\"\"),IF(AND(YEAR(JanSön1+39)=Kalenderår,MONTH(JanSön1+39)=1),JanSön1+39,\"\"))","v":""},{"$f":"IF(DAY(JanSön1)=1,IF(AND(YEAR(JanSön1+33)=Kalenderår,MONTH(JanSön1+33)=1),JanSön1+33,\"\"),IF(AND(YEAR(JanSön1+40)=Kalenderår,MONTH(JanSön1+40)=1),JanSön1+40,\"\"))","v":""},{"$f":"IF(DAY(JanSön1)=1,IF(AND(YEAR(JanSön1+34)=Kalenderår,MONTH(JanSön1+34)=1),JanSön1+34,\"\"),IF(AND(YEAR(JanSön1+41)=Kalenderår,MONTH(JanSön1+41)=1),JanSön1+41,\"\"))","v":""},{"$f":"IF(DAY(JanSön1)=1,IF(AND(YEAR(JanSön1+35)=Kalenderår,MONTH(JanSön1+35)=1),JanSön1+35,\"\"),IF(AND(YEAR(JanSön1+42)=Kalenderår,MONTH(JanSön1+42)=1),JanSön1+42,\"\"))","v":""},null,{"$f":"IF(DAY(FebSön1)=1,IF(AND(YEAR(FebSön1+29)=Kalenderår,MONTH(FebSön1+29)=2),FebSön1+29,\"\"),IF(AND(YEAR(FebSön1+36)=Kalenderår,MONTH(FebSön1+36)=2),FebSön1+36,\"\"))","v":""},{"$f":"IF(DAY(FebSön1)=1,IF(AND(YEAR(FebSön1+30)=Kalenderår,MONTH(FebSön1+30)=2),FebSön1+30,\"\"),IF(AND(YEAR(FebSön1+37)=Kalenderår,MONTH(FebSön1+37)=2),FebSön1+37,\"\"))","v":""},{"$f":"IF(DAY(FebSön1)=1,IF(AND(YEAR(FebSön1+31)=Kalenderår,MONTH(FebSön1+31)=2),FebSön1+31,\"\"),IF(AND(YEAR(FebSön1+38)=Kalenderår,MONTH(FebSön1+38)=2),FebSön1+38,\"\"))","v":""},{"$f":"IF(DAY(FebSön1)=1,IF(AND(YEAR(FebSön1+32)=Kalenderår,MONTH(FebSön1+32)=2),FebSön1+32,\"\"),IF(AND(YEAR(FebSön1+39)=Kalenderår,MONTH(FebSön1+39)=2),FebSön1+39,\"\"))","v":""},{"$f":"IF(DAY(FebSön1)=1,IF(AND(YEAR(FebSön1+33)=Kalenderår,MONTH(FebSön1+33)=2),FebSön1+33,\"\"),IF(AND(YEAR(FebSön1+40)=Kalenderår,MONTH(FebSön1+40)=2),FebSön1+40,\"\"))","v":""},{"$f":"IF(DAY(FebSön1)=1,IF(AND(YEAR(FebSön1+34)=Kalenderår,MONTH(FebSön1+34)=2),FebSön1+34,\"\"),IF(AND(YEAR(FebSön1+41)=Kalenderår,MONTH(FebSön1+41)=2),FebSön1+41,\"\"))","v":""},{"$f":"IF(DAY(FebSön1)=1,IF(AND(YEAR(FebSön1+35)=Kalenderår,MONTH(FebSön1+35)=2),FebSön1+35,\"\"),IF(AND(YEAR(FebSön1+42)=Kalenderår,MONTH(FebSön1+42)=2),FebSön1+42,\"\"))","v":""},{"$nulls":3},"ÖPPET HUS"]
[]
[null,null,"MARS",{"$nulls":7},"APRIL"]
[null,null,"M","T","O","T","F","L","S",null,"M","T","O","T","F","L","S"]
[null,null,{"$f":"IF(DAY(MarSön1)=1,\"\",IF(AND(YEAR(MarSön1+1)=Kalenderår,MONTH(MarSön1+1)=3),MarSön1+1,\"\"))","v":""},{"$f":"IF(DAY(MarSön1)=1,\"\",IF(AND(YEAR(MarSön1+2)=Kalenderår,MONTH(MarSön1+2)=3),MarSön1+2,\"\"))","v":""},{"$f":"IF(DAY(MarSön1)=1,\"\",IF(AND(YEAR(MarSön1+3)=Kalenderår,MONTH(MarSön1+3)=3),MarSön1+3,\"\"))","v":""},{"$f":"IF(DAY(MarSön1)=1,\"\",IF(AND(YEAR(MarSön1+4)=Kalenderår,MONTH(MarSön1+4)=3),MarSön1+4,\"\"))","v":""},{"$f":"IF(DAY(MarSön1)=1,\"\",IF(AND(YEAR(MarSön1+5)=Kalenderår,MONTH(MarSön1+5)=3),MarSön1+5,\"\"))","v":"2019-03-01"},{"$f":"IF(DAY(MarSön1)=1,\"\",IF(AND(YEAR(MarSön1+6)=Kalenderår,MONTH(MarSön1+6)=3),MarSön1+6,\"\"))","v":"2019-03-02"},{"$f":"IF(DAY(MarSön1)=1,IF(AND(YEAR(MarSön1)=Kalenderår,MONTH(MarSön1)=3),MarSön1,\"\"),IF(AND(YEAR(MarSön1+7)=Kalenderår,MONTH(MarSön1+7)=3),MarSön1+7,\"\"))","v":"2019-03-03"},null,{"$f":"IF(DAY(AprSön1)=1,\"\",IF(AND(YEAR(AprSön1+1)=Kalenderår,MONTH(AprSön1+1)=4),AprSön1+1,\"\"))","v":"2019-04-01"},{"$f":"IF(DAY(AprSön1)=1,\"\",IF(AND(YEAR(AprSön1+2)=Kalenderår,MONTH(AprSön1+2)=4),AprSön1+2,\"\"))","v":"2019-04-02"},{"$f":"IF(DAY(AprSön1)=1,\"\",IF(AND(YEAR(AprSön1+3)=Kalenderår,MONTH(AprSön1+3)=4),AprSön1+3,\"\"))","v":"2019-04-03"},{"$f":"IF(DAY(AprSön1)=1,\"\",IF(AND(YEAR(AprSön1+4)=Kalenderår,MONTH(AprSön1+4)=4),AprSön1+4,\"\"))","v":"2019-04-04"},{"$f":"IF(DAY(AprSön1)=1,\"\",IF(AND(YEAR(AprSön1+5)=Kalenderår,MONTH(AprSön1+5)=4),AprSön1+5,\"\"))","v":"2019-04-05"},{"$f":"IF(DAY(AprSön1)=1,\"\",IF(AND(YEAR(AprSön1+6)=Kalenderår,MONTH(AprSön1+6)=4),AprSön1+6,\"\"))","v":"2019-04-06"},{"$f":"IF(DAY(AprSön1)=1,IF(AND(YEAR(AprSön1)=Kalenderår,MONTH(AprSön1)=4),AprSön1,\"\"),IF(AND(YEAR(AprSön1+7)=Kalenderår,MONTH(AprSön1+7)=4),AprSön1+7,\"\"))","v":"2019-04-07"}]
[null,null,{"$f":"IF(DAY(MarSön1)=1,IF(AND(YEAR(MarSön1+1)=Kalenderår,MONTH(MarSön1+1)=3),MarSön1+1,\"\"),IF(AND(YEAR(MarSön1+8)=Kalenderår,MONTH(MarSön1+8)=3),MarSön1+8,\"\"))","v":"2019-03-04"},{"$f":"IF(DAY(MarSön1)=1,IF(AND(YEAR(MarSön1+2)=Kalenderår,MONTH(MarSön1+2)=3),MarSön1+2,\"\"),IF(AND(YEAR(MarSön1+9)=Kalenderår,MONTH(MarSön1+9)=3),MarSön1+9,\"\"))","v":"2019-03-05"},{"$f":"IF(DAY(MarSön1)=1,IF(AND(YEAR(MarSön1+3)=Kalenderår,MONTH(MarSön1+3)=3),MarSön1+3,\"\"),IF(AND(YEAR(MarSön1+10)=Kalenderår,MONTH(MarSön1+10)=3),MarSön1+10,\"\"))","v":"2019-03-06"},{"$f":"IF(DAY(MarSön1)=1,IF(AND(YEAR(MarSön1+4)=Kalenderår,MONTH(MarSön1+4)=3),MarSön1+4,\"\"),IF(AND(YEAR(MarSön1+11)=Kalenderår,MONTH(MarSön1+11)=3),MarSön1+11,\"\"))","v":"2019-03-07"},{"$f":"IF(DAY(MarSön1)=1,IF(AND(YEAR(MarSön1+5)=Kalenderår,MONTH(MarSön1+5)=3),MarSön1+5,\"\"),IF(AND(YEAR(MarSön1+12)=Kalenderår,MONTH(MarSön1+12)=3),MarSön1+12,\"\"))","v":"2019-03-08"},{"$f":"IF(DAY(MarSön1)=1,IF(AND(YEAR(MarSön1+6)=Kalenderår,MONTH(MarSön1+6)=3),MarSön1+6,\"\"),IF(AND(YEAR(MarSön1+13)=Kalenderår,MONTH(MarSön1+13)=3),MarSön1+13,\"\"))","v":"2019-03-09"},{"$f":"IF(DAY(MarSön1)=1,IF(AND(YEAR(MarSön1+7)=Kalenderår,MONTH(MarSön1+7)=3),MarSön1+7,\"\"),IF(AND(YEAR(MarSön1+14)=Kalenderår,MONTH(MarSön1+14)=3),MarSön1+14,\"\"))","v":"2019-03-10"},null,{"$f":"IF(DAY(AprSön1)=1,IF(AND(YEAR(AprSön1+1)=Kalenderår,MONTH(AprSön1+1)=4),AprSön1+1,\"\"),IF(AND(YEAR(AprSön1+8)=Kalenderår,MONTH(AprSön1+8)=4),AprSön1+8,\"\"))","v":"2019-04-08"},{"$f":"IF(DAY(AprSön1)=1,IF(AND(YEAR(AprSön1+2)=Kalenderår,MONTH(AprSön1+2)=4),AprSön1+2,\"\"),IF(AND(YEAR(AprSön1+9)=Kalenderår,MONTH(AprSön1+9)=4),AprSön1+9,\"\"))","v":"2019-04-09"},{"$f":"IF(DAY(AprSön1)=1,IF(AND(YEAR(AprSön1+3)=Kalenderår,MONTH(AprSön1+3)=4),AprSön1+3,\"\"),IF(AND(YEAR(AprSön1+10)=Kalenderår,MONTH(AprSön1+10)=4),AprSön1+10,\"\"))","v":"2019-04-10"},{"$f":"IF(DAY(AprSön1)=1,IF(AND(YEAR(AprSön1+4)=Kalenderår,MONTH(AprSön1+4)=4),AprSön1+4,\"\"),IF(AND(YEAR(AprSön1+11)=Kalenderår,MONTH(AprSön1+11)=4),AprSön1+11,\"\"))","v":"2019-04-11"},{"$f":"IF(DAY(AprSön1)=1,IF(AND(YEAR(AprSön1+5)=Kalenderår,MONTH(AprSön1+5)=4),AprSön1+5,\"\"),IF(AND(YEAR(AprSön1+12)=Kalenderår,MONTH(AprSön1+12)=4),AprSön1+12,\"\"))","v":"2019-04-12"},{"$f":"IF(DAY(AprSön1)=1,IF(AND(YEAR(AprSön1+6)=Kalenderår,MONTH(AprSön1+6)=4),AprSön1+6,\"\"),IF(AND(YEAR(AprSön1+13)=Kalenderår,MONTH(AprSön1+13)=4),AprSön1+13,\"\"))","v":"2019-04-13"},{"$f":"IF(DAY(AprSön1)=1,IF(AND(YEAR(AprSön1+7)=Kalenderår,MONTH(AprSön1+7)=4),AprSön1+7,\"\"),IF(AND(YEAR(AprSön1+14)=Kalenderår,MONTH(AprSön1+14)=4),AprSön1+14,\"\"))","v":"2019-04-14"}]
[null,null,{"$f":"IF(DAY(MarSön1)=1,IF(AND(YEAR(MarSön1+8)=Kalenderår,MONTH(MarSön1+8)=3),MarSön1+8,\"\"),IF(AND(YEAR(MarSön1+15)=Kalenderår,MONTH(MarSön1+15)=3),MarSön1+15,\"\"))","v":"2019-03-11"},{"$f":"IF(DAY(MarSön1)=1,IF(AND(YEAR(MarSön1+9)=Kalenderår,MONTH(MarSön1+9)=3),MarSön1+9,\"\"),IF(AND(YEAR(MarSön1+16)=Kalenderår,MONTH(MarSön1+16)=3),MarSön1+16,\"\"))","v":"2019-03-12"},{"$f":"IF(DAY(MarSön1)=1,IF(AND(YEAR(MarSön1+10)=Kalenderår,MONTH(MarSön1+10)=3),MarSön1+10,\"\"),IF(AND(YEAR(MarSön1+17)=Kalenderår,MONTH(MarSön1+17)=3),MarSön1+17,\"\"))","v":"2019-03-13"},{"$f":"IF(DAY(MarSön1)=1,IF(AND(YEAR(MarSön1+11)=Kalenderår,MONTH(MarSön1+11)=3),MarSön1+11,\"\"),IF(AND(YEAR(MarSön1+18)=Kalenderår,MONTH(MarSön1+18)=3),MarSön1+18,\"\"))","v":"2019-03-14"},{"$f":"IF(DAY(MarSön1)=1,IF(AND(YEAR(MarSön1+12)=Kalenderår,MONTH(MarSön1+12)=3),MarSön1+12,\"\"),IF(AND(YEAR(MarSön1+19)=Kalenderår,MONTH(MarSön1+19)=3),MarSön1+19,\"\"))","v":"2019-03-15"},{"$f":"IF(DAY(MarSön1)=1,IF(AND(YEAR(MarSön1+13)=Kalenderår,MONTH(MarSön1+13)=3),MarSön1+13,\"\"),IF(AND(YEAR(MarSön1+20)=Kalenderår,MONTH(MarSön1+20)=3),MarSön1+20,\"\"))","v":"2019-03-16"},{"$f":"IF(DAY(MarSön1)=1,IF(AND(YEAR(MarSön1+14)=Kalenderår,MONTH(MarSön1+14)=3),MarSön1+14,\"\"),IF(AND(YEAR(MarSön1+21)=Kalenderår,MONTH(MarSön1+21)=3),MarSön1+21,\"\"))","v":"2019-03-17"},null,{"$f":"IF(DAY(AprSön1)=1,IF(AND(YEAR(AprSön1+8)=Kalenderår,MONTH(AprSön1+8)=4),AprSön1+8,\"\"),IF(AND(YEAR(AprSön1+15)=Kalenderår,MONTH(AprSön1+15)=4),AprSön1+15,\"\"))","v":"2019-04-15"},{"$f":"IF(DAY(AprSön1)=1,IF(AND(YEAR(AprSön1+9)=Kalenderår,MONTH(AprSön1+9)=4),AprSön1+9,\"\"),IF(AND(YEAR(AprSön1+16)=Kalenderår,MONTH(AprSön1+16)=4),AprSön1+16,\"\"))","v":"2019-04-16"},{"$f":"IF(DAY(AprSön1)=1,IF(AND(YEAR(AprSön1+10)=Kalenderår,MONTH(AprSön1+10)=4),AprSön1+10,\"\"),IF(AND(YEAR(AprSön1+17)=Kalenderår,MONTH(AprSön1+17)=4),AprSön1+17,\"\"))","v":"2019-04-17"},{"$f":"IF(DAY(AprSön1)=1,IF(AND(YEAR(AprSön1+11)=Kalenderår,MONTH(AprSön1+11)=4),AprSön1+11,\"\"),IF(AND(YEAR(AprSön1+18)=Kalenderår,MONTH(AprSön1+18)=4),AprSön1+18,\"\"))","v":"2019-04-18"},{"$f":"IF(DAY(AprSön1)=1,IF(AND(YEAR(AprSön1+12)=Kalenderår,MONTH(AprSön1+12)=4),AprSön1+12,\"\"),IF(AND(YEAR(AprSön1+19)=Kalenderår,MONTH(AprSön1+19)=4),AprSön1+19,\"\"))","v":"2019-04-19"},{"$f":"IF(DAY(AprSön1)=1,IF(AND(YEAR(AprSön1+13)=Kalenderår,MONTH(AprSön1+13)=4),AprSön1+13,\"\"),IF(AND(YEAR(AprSön1+20)=Kalenderår,MONTH(AprSön1+20)=4),AprSön1+20,\"\"))","v":"2019-04-20"},{"$f":"IF(DAY(AprSön1)=1,IF(AND(YEAR(AprSön1+14)=Kalenderår,MONTH(AprSön1+14)=4),AprSön1+14,\"\"),IF(AND(YEAR(AprSön1+21)=Kalenderår,MONTH(AprSön1+21)=4),AprSön1+21,\"\"))","v":"2019-04-21"}]
[null,null,{"$f":"IF(DAY(MarSön1)=1,IF(AND(YEAR(MarSön1+15)=Kalenderår,MONTH(MarSön1+15)=3),MarSön1+15,\"\"),IF(AND(YEAR(MarSön1+22)=Kalenderår,MONTH(MarSön1+22)=3),MarSön1+22,\"\"))","v":"2019-03-18"},{"$f":"IF(DAY(MarSön1)=1,IF(AND(YEAR(MarSön1+16)=Kalenderår,MONTH(MarSön1+16)=3),MarSön1+16,\"\"),IF(AND(YEAR(MarSön1+23)=Kalenderår,MONTH(MarSön1+23)=3),MarSön1+23,\"\"))","v":"2019-03-19"},{"$f":"IF(DAY(MarSön1)=1,IF(AND(YEAR(MarSön1+17)=Kalenderår,MONTH(MarSön1+17)=3),MarSön1+17,\"\"),IF(AND(YEAR(MarSön1+24)=Kalenderår,MONTH(MarSön1+24)=3),MarSön1+24,\"\"))","v":"2019-03-20"},{"$f":"IF(DAY(MarSön1)=1,IF(AND(YEAR(MarSön1+18)=Kalenderår,MONTH(MarSön1+18)=3),MarSön1+18,\"\"),IF(AND(YEAR(MarSön1+25)=Kalenderår,MONTH(MarSön1+25)=3),MarSön1+25,\"\"))","v":"2019-03-21"},{"$f":"IF(DAY(MarSön1)=1,IF(AND(YEAR(MarSön1+19)=Kalenderår,MONTH(MarSön1+19)=3),MarSön1+19,\"\"),IF(AND(YEAR(MarSön1+26)=Kalenderår,MONTH(MarSön1+26)=3),MarSön1+26,\"\"))","v":"2019-03-22"},{"$f":"IF(DAY(MarSön1)=1,IF(AND(YEAR(MarSön1+20)=Kalenderår,MONTH(MarSön1+20)=3),MarSön1+20,\"\"),IF(AND(YEAR(MarSön1+27)=Kalenderår,MONTH(MarSön1+27)=3),MarSön1+27,\"\"))","v":"2019-03-23"},{"$f":"IF(DAY(MarSön1)=1,IF(AND(YEAR(MarSön1+21)=Kalenderår,MONTH(MarSön1+21)=3),MarSön1+21,\"\"),IF(AND(YEAR(MarSön1+28)=Kalenderår,MONTH(MarSön1+28)=3),MarSön1+28,\"\"))","v":"2019-03-24"},null,{"$f":"IF(DAY(AprSön1)=1,IF(AND(YEAR(AprSön1+15)=Kalenderår,MONTH(AprSön1+15)=4),AprSön1+15,\"\"),IF(AND(YEAR(AprSön1+22)=Kalenderår,MONTH(AprSön1+22)=4),AprSön1+22,\"\"))","v":"2019-04-22"},{"$f":"IF(DAY(AprSön1)=1,IF(AND(YEAR(AprSön1+16)=Kalenderår,MONTH(AprSön1+16)=4),AprSön1+16,\"\"),IF(AND(YEAR(AprSön1+23)=Kalenderår,MONTH(AprSön1+23)=4),AprSön1+23,\"\"))","v":"2019-04-23"},{"$f":"IF(DAY(AprSön1)=1,IF(AND(YEAR(AprSön1+17)=Kalenderår,MONTH(AprSön1+17)=4),AprSön1+17,\"\"),IF(AND(YEAR(AprSön1+24)=Kalenderår,MONTH(AprSön1+24)=4),AprSön1+24,\"\"))","v":"2019-04-24"},{"$f":"IF(DAY(AprSön1)=1,IF(AND(YEAR(AprSön1+18)=Kalenderår,MONTH(AprSön1+18)=4),AprSön1+18,\"\"),IF(AND(YEAR(AprSön1+25)=Kalenderår,MONTH(AprSön1+25)=4),AprSön1+25,\"\"))","v":"2019-04-25"},{"$f":"IF(DAY(AprSön1)=1,IF(AND(YEAR(AprSön1+19)=Kalenderår,MONTH(AprSön1+19)=4),AprSön1+19,\"\"),IF(AND(YEAR(AprSön1+26)=Kalenderår,MONTH(AprSön1+26)=4),AprSön1+26,\"\"))","v":"2019-04-26"},{"$f":"IF(DAY(AprSön1)=1,IF(AND(YEAR(AprSön1+20)=Kalenderår,MONTH(AprSön1+20)=4),AprSön1+20,\"\"),IF(AND(YEAR(AprSön1+27)=Kalenderår,MONTH(AprSön1+27)=4),AprSön1+27,\"\"))","v":"2019-04-27"},{"$f":"IF(DAY(AprSön1)=1,IF(AND(YEAR(AprSön1+21)=Kalenderår,MONTH(AprSön1+21)=4),AprSön1+21,\"\"),IF(AND(YEAR(AprSön1+28)=Kalenderår,MONTH(AprSön1+28)=4),AprSön1+28,\"\"))","v":"2019-04-28"}]
[null,null,{"$f":"IF(DAY(MarSön1)=1,IF(AND(YEAR(MarSön1+22)=Kalenderår,MONTH(MarSön1+22)=3),MarSön1+22,\"\"),IF(AND(YEAR(MarSön1+29)=Kalenderår,MONTH(MarSön1+29)=3),MarSön1+29,\"\"))","v":"2019-03-25"},{"$f":"IF(DAY(MarSön1)=1,IF(AND(YEAR(MarSön1+23)=Kalenderår,MONTH(MarSön1+23)=3),MarSön1+23,\"\"),IF(AND(YEAR(MarSön1+30)=Kalenderår,MONTH(MarSön1+30)=3),MarSön1+30,\"\"))","v":"2019-03-26"},{"$f":"IF(DAY(MarSön1)=1,IF(AND(YEAR(MarSön1+24)=Kalenderår,MONTH(MarSön1+24)=3),MarSön1+24,\"\"),IF(AND(YEAR(MarSön1+31)=Kalenderår,MONTH(MarSön1+31)=3),MarSön1+31,\"\"))","v":"2019-03-27"},{"$f":"IF(DAY(MarSön1)=1,IF(AND(YEAR(MarSön1+25)=Kalenderår,MONTH(MarSön1+25)=3),MarSön1+25,\"\"),IF(AND(YEAR(MarSön1+32)=Kalenderår,MONTH(MarSön1+32)=3),MarSön1+32,\"\"))","v":"2019-03-28"},{"$f":"IF(DAY(MarSön1)=1,IF(AND(YEAR(MarSön1+26)=Kalenderår,MONTH(MarSön1+26)=3),MarSön1+26,\"\"),IF(AND(YEAR(MarSön1+33)=Kalenderår,MONTH(MarSön1+33)=3),MarSön1+33,\"\"))","v":"2019-03-29"},{"$f":"IF(DAY(MarSön1)=1,IF(AND(YEAR(MarSön1+27)=Kalenderår,MONTH(MarSön1+27)=3),MarSön1+27,\"\"),IF(AND(YEAR(MarSön1+34)=Kalenderår,MONTH(MarSön1+34)=3),MarSön1+34,\"\"))","v":"2019-03-30"},{"$f":"IF(DAY(MarSön1)=1,IF(AND(YEAR(MarSön1+28)=Kalenderår,MONTH(MarSön1+28)=3),MarSön1+28,\"\"),IF(AND(YEAR(MarSön1+35)=Kalenderår,MONTH(MarSön1+35)=3),MarSön1+35,\"\"))","v":"2019-03-31"},null,{"$f":"IF(DAY(AprSön1)=1,IF(AND(YEAR(AprSön1+22)=Kalenderår,MONTH(AprSön1+22)=4),AprSön1+22,\"\"),IF(AND(YEAR(AprSön1+29)=Kalenderår,MONTH(AprSön1+29)=4),AprSön1+29,\"\"))","v":"2019-04-29"},{"$f":"IF(DAY(AprSön1)=1,IF(AND(YEAR(AprSön1+23)=Kalenderår,MONTH(AprSön1+23)=4),AprSön1+23,\"\"),IF(AND(YEAR(AprSön1+30)=Kalenderår,MONTH(AprSön1+30)=4),AprSön1+30,\"\"))","v":"2019-04-30"},{"$f":"IF(DAY(AprSön1)=1,IF(AND(YEAR(AprSön1+24)=Kalenderår,MONTH(AprSön1+24)=4),AprSön1+24,\"\"),IF(AND(YEAR(AprSön1+31)=Kalenderår,MONTH(AprSön1+31)=4),AprSön1+31,\"\"))","v":""},{"$f":"IF(DAY(AprSön1)=1,IF(AND(YEAR(AprSön1+25)=Kalenderår,MONTH(AprSön1+25)=4),AprSön1+25,\"\"),IF(AND(YEAR(AprSön1+32)=Kalenderår,MONTH(AprSön1+32)=4),AprSön1+32,\"\"))","v":""},{"$f":"IF(DAY(AprSön1)=1,IF(AND(YEAR(AprSön1+26)=Kalenderår,MONTH(AprSön1+26)=4),AprSön1+26,\"\"),IF(AND(YEAR(AprSön1+33)=Kalenderår,MONTH(AprSön1+33)=4),AprSön1+33,\"\"))","v":""},{"$f":"IF(DAY(AprSön1)=1,IF(AND(YEAR(AprSön1+27)=Kalenderår,MONTH(AprSön1+27)=4),AprSön1+27,\"\"),IF(AND(YEAR(AprSön1+34)=Kalenderår,MONTH(AprSön1+34)=4),AprSön1+34,\"\"))","v":""},{"$f":"IF(DAY(AprSön1)=1,IF(AND(YEAR(AprSön1+28)=Kalenderår,MONTH(AprSön1+28)=4),AprSön1+28,\"\"),IF(AND(YEAR(AprSön1+35)=Kalenderår,MONTH(AprSön1+35)=4),AprSön1+35,\"\"))","v":""}]
[null,null,{"$f":"IF(DAY(MarSön1)=1,IF(AND(YEAR(MarSön1+29)=Kalenderår,MONTH(MarSön1+29)=3),MarSön1+29,\"\"),IF(AND(YEAR(MarSön1+36)=Kalenderår,MONTH(MarSön1+36)=3),MarSön1+36,\"\"))","v":""},{"$f":"IF(DAY(MarSön1)=1,IF(AND(YEAR(MarSön1+30)=Kalenderår,MONTH(MarSön1+30)=3),MarSön1+30,\"\"),IF(AND(YEAR(MarSön1+37)=Kalenderår,MONTH(MarSön1+37)=3),MarSön1+37,\"\"))","v":""},{"$f":"IF(DAY(MarSön1)=1,IF(AND(YEAR(MarSön1+31)=Kalenderår,MONTH(MarSön1+31)=3),MarSön1+31,\"\"),IF(AND(YEAR(MarSön1+38)=Kalenderår,MONTH(MarSön1+38)=3),MarSön1+38,\"\"))","v":""},{"$f":"IF(DAY(MarSön1)=1,IF(AND(YEAR(MarSön1+32)=Kalenderår,MONTH(MarSön1+32)=3),MarSön1+32,\"\"),IF(AND(YEAR(MarSön1+39)=Kalenderår,MONTH(MarSön1+39)=3),MarSön1+39,\"\"))","v":""},{"$f":"IF(DAY(MarSön1)=1,IF(AND(YEAR(MarSön1+33)=Kalenderår,MONTH(MarSön1+33)=3),MarSön1+33,\"\"),IF(AND(YEAR(MarSön1+40)=Kalenderår,MONTH(MarSön1+40)=3),MarSön1+40,\"\"))","v":""},{"$f":"IF(DAY(MarSön1)=1,IF(AND(YEAR(MarSön1+34)=Kalenderår,MONTH(MarSön1+34)=3),MarSön1+34,\"\"),IF(AND(YEAR(MarSön1+41)=Kalenderår,MONTH(MarSön1+41)=3),MarSön1+41,\"\"))","v":""},{"$f":"IF(DAY(MarSön1)=1,IF(AND(YEAR(MarSön1+35)=Kalenderår,MONTH(MarSön1+35)=3),MarSön1+35,\"\"),IF(AND(YEAR(MarSön1+42)=Kalenderår,MONTH(MarSön1+42)=3),MarSön1+42,\"\"))","v":""},null,{"$f":"IF(DAY(AprSön1)=1,IF(AND(YEAR(AprSön1+29)=Kalenderår,MONTH(AprSön1+29)=4),AprSön1+29,\"\"),IF(AND(YEAR(AprSön1+36)=Kalenderår,MONTH(AprSön1+36)=4),AprSön1+36,\"\"))","v":""},{"$f":"IF(DAY(AprSön1)=1,IF(AND(YEAR(AprSön1+30)=Kalenderår,MONTH(AprSön1+30)=4),AprSön1+30,\"\"),IF(AND(YEAR(AprSön1+37)=Kalenderår,MONTH(AprSön1+37)=4),AprSön1+37,\"\"))","v":""},{"$f":"IF(DAY(AprSön1)=1,IF(AND(YEAR(AprSön1+31)=Kalenderår,MONTH(AprSön1+31)=4),AprSön1+31,\"\"),IF(AND(YEAR(AprSön1+38)=Kalenderår,MONTH(AprSön1+38)=4),AprSön1+38,\"\"))","v":""},{"$f":"IF(DAY(AprSön1)=1,IF(AND(YEAR(AprSön1+32)=Kalenderår,MONTH(AprSön1+32)=4),AprSön1+32,\"\"),IF(AND(YEAR(AprSön1+39)=Kalenderår,MONTH(AprSön1+39)=4),AprSön1+39,\"\"))","v":""},{"$f":"IF(DAY(AprSön1)=1,IF(AND(YEAR(AprSön1+33)=Kalenderår,MONTH(AprSön1+33)=4),AprSön1+33,\"\"),IF(AND(YEAR(AprSön1+40)=Kalenderår,MONTH(AprSön1+40)=4),AprSön1+40,\"\"))","v":""},{"$f":"IF(DAY(AprSön1)=1,IF(AND(YEAR(AprSön1+34)=Kalenderår,MONTH(AprSön1+34)=4),AprSön1+34,\"\"),IF(AND(YEAR(AprSön1+41)=Kalenderår,MONTH(AprSön1+41)=4),AprSön1+41,\"\"))","v":""},{"$f":"IF(DAY(AprSön1)=1,IF(AND(YEAR(AprSön1+35)=Kalenderår,MONTH(AprSön1+35)=4),AprSön1+35,\"\"),IF(AND(YEAR(AprSön1+42)=Kalenderår,MONTH(AprSön1+42)=4),AprSön1+42,\"\"))","v":""}]
[]
[null,null,"MAJ",{"$nulls":7},"JUNI"]
[null,null,"M","T","O","T","F","L","S",null,"M","T","O","T","F","L","S"]
[null,null,{"$f":"IF(DAY(MajSön1)=1,\"\",IF(AND(YEAR(MajSön1+1)=Kalenderår,MONTH(MajSön1+1)=5),MajSön1+1,\"\"))","v":""},{"$f":"IF(DAY(MajSön1)=1,\"\",IF(AND(YEAR(MajSön1+2)=Kalenderår,MONTH(MajSön1+2)=5),MajSön1+2,\"\"))","v":""},{"$f":"IF(DAY(MajSön1)=1,\"\",IF(AND(YEAR(MajSön1+3)=Kalenderår,MONTH(MajSön1+3)=5),MajSön1+3,\"\"))","v":"2019-05-01"},{"$f":"IF(DAY(MajSön1)=1,\"\",IF(AND(YEAR(MajSön1+4)=Kalenderår,MONTH(MajSön1+4)=5),MajSön1+4,\"\"))","v":"2019-05-02"},{"$f":"IF(DAY(MajSön1)=1,\"\",IF(AND(YEAR(MajSön1+5)=Kalenderår,MONTH(MajSön1+5)=5),MajSön1+5,\"\"))","v":"2019-05-03"},{"$f":"IF(DAY(MajSön1)=1,\"\",IF(AND(YEAR(MajSön1+6)=Kalenderår,MONTH(MajSön1+6)=5),MajSön1+6,\"\"))","v":"2019-05-04"},{"$f":"IF(DAY(MajSön1)=1,IF(AND(YEAR(MajSön1)=Kalenderår,MONTH(MajSön1)=5),MajSön1,\"\"),IF(AND(YEAR(MajSön1+7)=Kalenderår,MONTH(MajSön1+7)=5),MajSön1+7,\"\"))","v":"2019-05-05"},null,{"$f":"IF(DAY(JunSön1)=1,\"\",IF(AND(YEAR(JunSön1+1)=Kalenderår,MONTH(JunSön1+1)=6),JunSön1+1,\"\"))","v":""},{"$f":"IF(DAY(JunSön1)=1,\"\",IF(AND(YEAR(JunSön1+2)=Kalenderår,MONTH(JunSön1+2)=6),JunSön1+2,\"\"))","v":""},{"$f":"IF(DAY(JunSön1)=1,\"\",IF(AND(YEAR(JunSön1+3)=Kalenderår,MONTH(JunSön1+3)=6),JunSön1+3,\"\"))","v":""},{"$f":"IF(DAY(JunSön1)=1,\"\",IF(AND(YEAR(JunSön1+4)=Kalenderår,MONTH(JunSön1+4)=6),JunSön1+4,\"\"))","v":""},{"$f":"IF(DAY(JunSön1)=1,\"\",IF(AND(YEAR(JunSön1+5)=Kalenderår,MONTH(JunSön1+5)=6),JunSön1+5,\"\"))","v":""},{"$f":"IF(DAY(JunSön1)=1,\"\",IF(AND(YEAR(JunSön1+6)=Kalenderår,MONTH(JunSön1+6)=6),JunSön1+6,\"\"))","v":"2019-06-01"},{"$f":"IF(DAY(JunSön1)=1,IF(AND(YEAR(JunSön1)=Kalenderår,MONTH(JunSön1)=6),JunSön1,\"\"),IF(AND(YEAR(JunSön1+7)=Kalenderår,MONTH(JunSön1+7)=6),JunSön1+7,\"\"))","v":"2019-06-02"}]
[null,null,{"$f":"IF(DAY(MajSön1)=1,IF(AND(YEAR(MajSön1+1)=Kalenderår,MONTH(MajSön1+1)=5),MajSön1+1,\"\"),IF(AND(YEAR(MajSön1+8)=Kalenderår,MONTH(MajSön1+8)=5),MajSön1+8,\"\"))","v":"2019-05-06"},{"$f":"IF(DAY(MajSön1)=1,IF(AND(YEAR(MajSön1+2)=Kalenderår,MONTH(MajSön1+2)=5),MajSön1+2,\"\"),IF(AND(YEAR(MajSön1+9)=Kalenderår,MONTH(MajSön1+9)=5),MajSön1+9,\"\"))","v":"2019-05-07"},{"$f":"IF(DAY(MajSön1)=1,IF(AND(YEAR(MajSön1+3)=Kalenderår,MONTH(MajSön1+3)=5),MajSön1+3,\"\"),IF(AND(YEAR(MajSön1+10)=Kalenderår,MONTH(MajSön1+10)=5),MajSön1+10,\"\"))","v":"2019-05-08"},{"$f":"IF(DAY(MajSön1)=1,IF(AND(YEAR(MajSön1+4)=Kalenderår,MONTH(MajSön1+4)=5),MajSön1+4,\"\"),IF(AND(YEAR(MajSön1+11)=Kalenderår,MONTH(MajSön1+11)=5),MajSön1+11,\"\"))","v":"2019-05-09"},{"$f":"IF(DAY(MajSön1)=1,IF(AND(YEAR(MajSön1+5)=Kalenderår,MONTH(MajSön1+5)=5),MajSön1+5,\"\"),IF(AND(YEAR(MajSön1+12)=Kalenderår,MONTH(MajSön1+12)=5),MajSön1+12,\"\"))","v":"2019-05-10"},{"$f":"IF(DAY(MajSön1)=1,IF(AND(YEAR(MajSön1+6)=Kalenderår,MONTH(MajSön1+6)=5),MajSön1+6,\"\"),IF(AND(YEAR(MajSön1+13)=Kalenderår,MONTH(MajSön1+13)=5),MajSön1+13,\"\"))","v":"2019-05-11"},{"$f":"IF(DAY(MajSön1)=1,IF(AND(YEAR(MajSön1+7)=Kalenderår,MONTH(MajSön1+7)=5),MajSön1+7,\"\"),IF(AND(YEAR(MajSön1+14)=Kalenderår,MONTH(MajSön1+14)=5),MajSön1+14,\"\"))","v":"2019-05-12"},null,{"$f":"IF(DAY(JunSön1)=1,IF(AND(YEAR(JunSön1+1)=Kalenderår,MONTH(JunSön1+1)=6),JunSön1+1,\"\"),IF(AND(YEAR(JunSön1+8)=Kalenderår,MONTH(JunSön1+8)=6),JunSön1+8,\"\"))","v":"2019-06-03"},{"$f":"IF(DAY(JunSön1)=1,IF(AND(YEAR(JunSön1+2)=Kalenderår,MONTH(JunSön1+2)=6),JunSön1+2,\"\"),IF(AND(YEAR(JunSön1+9)=Kalenderår,MONTH(JunSön1+9)=6),JunSön1+9,\"\"))","v":"2019-06-04"},{"$f":"IF(DAY(JunSön1)=1,IF(AND(YEAR(JunSön1+3)=Kalenderår,MONTH(JunSön1+3)=6),JunSön1+3,\"\"),IF(AND(YEAR(JunSön1+10)=Kalenderår,MONTH(JunSön1+10)=6),JunSön1+10,\"\"))","v":"2019-06-05"},{"$f":"IF(DAY(JunSön1)=1,IF(AND(YEAR(JunSön1+4)=Kalenderår,MONTH(JunSön1+4)=6),JunSön1+4,\"\"),IF(AND(YEAR(JunSön1+11)=Kalenderår,MONTH(JunSön1+11)=6),JunSön1+11,\"\"))","v":"2019-06-06"},{"$f":"IF(DAY(JunSön1)=1,IF(AND(YEAR(JunSön1+5)=Kalenderår,MONTH(JunSön1+5)=6),JunSön1+5,\"\"),IF(AND(YEAR(JunSön1+12)=Kalenderår,MONTH(JunSön1+12)=6),JunSön1+12,\"\"))","v":"2019-06-07"},{"$f":"IF(DAY(JunSön1)=1,IF(AND(YEAR(JunSön1+6)=Kalenderår,MONTH(JunSön1+6)=6),JunSön1+6,\"\"),IF(AND(YEAR(JunSön1+13)=Kalenderår,MONTH(JunSön1+13)=6),JunSön1+13,\"\"))","v":"2019-06-08"},{"$f":"IF(DAY(JunSön1)=1,IF(AND(YEAR(JunSön1+7)=Kalenderår,MONTH(JunSön1+7)=6),JunSön1+7,\"\"),IF(AND(YEAR(JunSön1+14)=Kalenderår,MONTH(JunSön1+14)=6),JunSön1+14,\"\"))","v":"2019-06-09"}]
[null,null,{"$f":"IF(DAY(MajSön1)=1,IF(AND(YEAR(MajSön1+8)=Kalenderår,MONTH(MajSön1+8)=5),MajSön1+8,\"\"),IF(AND(YEAR(MajSön1+15)=Kalenderår,MONTH(MajSön1+15)=5),MajSön1+15,\"\"))","v":"2019-05-13"},{"$f":"IF(DAY(MajSön1)=1,IF(AND(YEAR(MajSön1+9)=Kalenderår,MONTH(MajSön1+9)=5),MajSön1+9,\"\"),IF(AND(YEAR(MajSön1+16)=Kalenderår,MONTH(MajSön1+16)=5),MajSön1+16,\"\"))","v":"2019-05-14"},{"$f":"IF(DAY(MajSön1)=1,IF(AND(YEAR(MajSön1+10)=Kalenderår,MONTH(MajSön1+10)=5),MajSön1+10,\"\"),IF(AND(YEAR(MajSön1+17)=Kalenderår,MONTH(MajSön1+17)=5),MajSön1+17,\"\"))","v":"2019-05-15"},{"$f":"IF(DAY(MajSön1)=1,IF(AND(YEAR(MajSön1+11)=Kalenderår,MONTH(MajSön1+11)=5),MajSön1+11,\"\"),IF(AND(YEAR(MajSön1+18)=Kalenderår,MONTH(MajSön1+18)=5),MajSön1+18,\"\"))","v":"2019-05-16"},{"$f":"IF(DAY(MajSön1)=1,IF(AND(YEAR(MajSön1+12)=Kalenderår,MONTH(MajSön1+12)=5),MajSön1+12,\"\"),IF(AND(YEAR(MajSön1+19)=Kalenderår,MONTH(MajSön1+19)=5),MajSön1+19,\"\"))","v":"2019-05-17"},{"$f":"IF(DAY(MajSön1)=1,IF(AND(YEAR(MajSön1+13)=Kalenderår,MONTH(MajSön1+13)=5),MajSön1+13,\"\"),IF(AND(YEAR(MajSön1+20)=Kalenderår,MONTH(MajSön1+20)=5),MajSön1+20,\"\"))","v":"2019-05-18"},{"$f":"IF(DAY(MajSön1)=1,IF(AND(YEAR(MajSön1+14)=Kalenderår,MONTH(MajSön1+14)=5),MajSön1+14,\"\"),IF(AND(YEAR(MajSön1+21)=Kalenderår,MONTH(MajSön1+21)=5),MajSön1+21,\"\"))","v":"2019-05-19"},null,{"$f":"IF(DAY(JunSön1)=1,IF(AND(YEAR(JunSön1+8)=Kalenderår,MONTH(JunSön1+8)=6),JunSön1+8,\"\"),IF(AND(YEAR(JunSön1+15)=Kalenderår,MONTH(JunSön1+15)=6),JunSön1+15,\"\"))","v":"2019-06-10"},{"$f":"IF(DAY(JunSön1)=1,IF(AND(YEAR(JunSön1+9)=Kalenderår,MONTH(JunSön1+9)=6),JunSön1+9,\"\"),IF(AND(YEAR(JunSön1+16)=Kalenderår,MONTH(JunSön1+16)=6),JunSön1+16,\"\"))","v":"2019-06-11"},{"$f":"IF(DAY(JunSön1)=1,IF(AND(YEAR(JunSön1+10)=Kalenderår,MONTH(JunSön1+10)=6),JunSön1+10,\"\"),IF(AND(YEAR(JunSön1+17)=Kalenderår,MONTH(JunSön1+17)=6),JunSön1+17,\"\"))","v":"2019-06-12"},{"$f":"IF(DAY(JunSön1)=1,IF(AND(YEAR(JunSön1+11)=Kalenderår,MONTH(JunSön1+11)=6),JunSön1+11,\"\"),IF(AND(YEAR(JunSön1+18)=Kalenderår,MONTH(JunSön1+18)=6),JunSön1+18,\"\"))","v":"2019-06-13"},{"$f":"IF(DAY(JunSön1)=1,IF(AND(YEAR(JunSön1+12)=Kalenderår,MONTH(JunSön1+12)=6),JunSön1+12,\"\"),IF(AND(YEAR(JunSön1+19)=Kalenderår,MONTH(JunSön1+19)=6),JunSön1+19,\"\"))","v":"2019-06-14"},{"$f":"IF(DAY(JunSön1)=1,IF(AND(YEAR(JunSön1+13)=Kalenderår,MONTH(JunSön1+13)=6),JunSön1+13,\"\"),IF(AND(YEAR(JunSön1+20)=Kalenderår,MONTH(JunSön1+20)=6),JunSön1+20,\"\"))","v":"2019-06-15"},{"$f":"IF(DAY(JunSön1)=1,IF(AND(YEAR(JunSön1+14)=Kalenderår,MONTH(JunSön1+14)=6),JunSön1+14,\"\"),IF(AND(YEAR(JunSön1+21)=Kalenderår,MONTH(JunSön1+21)=6),JunSön1+21,\"\"))","v":"2019-06-16"}]
[null,null,{"$f":"IF(DAY(MajSön1)=1,IF(AND(YEAR(MajSön1+15)=Kalenderår,MONTH(MajSön1+15)=5),MajSön1+15,\"\"),IF(AND(YEAR(MajSön1+22)=Kalenderår,MONTH(MajSön1+22)=5),MajSön1+22,\"\"))","v":"2019-05-20"},{"$f":"IF(DAY(MajSön1)=1,IF(AND(YEAR(MajSön1+16)=Kalenderår,MONTH(MajSön1+16)=5),MajSön1+16,\"\"),IF(AND(YEAR(MajSön1+23)=Kalenderår,MONTH(MajSön1+23)=5),MajSön1+23,\"\"))","v":"2019-05-21"},{"$f":"IF(DAY(MajSön1)=1,IF(AND(YEAR(MajSön1+17)=Kalenderår,MONTH(MajSön1+17)=5),MajSön1+17,\"\"),IF(AND(YEAR(MajSön1+24)=Kalenderår,MONTH(MajSön1+24)=5),MajSön1+24,\"\"))","v":"2019-05-22"},{"$f":"IF(DAY(MajSön1)=1,IF(AND(YEAR(MajSön1+18)=Kalenderår,MONTH(MajSön1+18)=5),MajSön1+18,\"\"),IF(AND(YEAR(MajSön1+25)=Kalenderår,MONTH(MajSön1+25)=5),MajSön1+25,\"\"))","v":"2019-05-23"},{"$f":"IF(DAY(MajSön1)=1,IF(AND(YEAR(MajSön1+19)=Kalenderår,MONTH(MajSön1+19)=5),MajSön1+19,\"\"),IF(AND(YEAR(MajSön1+26)=Kalenderår,MONTH(MajSön1+26)=5),MajSön1+26,\"\"))","v":"2019-05-24"},{"$f":"IF(DAY(MajSön1)=1,IF(AND(YEAR(MajSön1+20)=Kalenderår,MONTH(MajSön1+20)=5),MajSön1+20,\"\"),IF(AND(YEAR(MajSön1+27)=Kalenderår,MONTH(MajSön1+27)=5),MajSön1+27,\"\"))","v":"2019-05-25"},{"$f":"IF(DAY(MajSön1)=1,IF(AND(YEAR(MajSön1+21)=Kalenderår,MONTH(MajSön1+21)=5),MajSön1+21,\"\"),IF(AND(YEAR(MajSön1+28)=Kalenderår,MONTH(MajSön1+28)=5),MajSön1+28,\"\"))","v":"2019-05-26"},null,{"$f":"IF(DAY(JunSön1)=1,IF(AND(YEAR(JunSön1+15)=Kalenderår,MONTH(JunSön1+15)=6),JunSön1+15,\"\"),IF(AND(YEAR(JunSön1+22)=Kalenderår,MONTH(JunSön1+22)=6),JunSön1+22,\"\"))","v":"2019-06-17"},{"$f":"IF(DAY(JunSön1)=1,IF(AND(YEAR(JunSön1+16)=Kalenderår,MONTH(JunSön1+16)=6),JunSön1+16,\"\"),IF(AND(YEAR(JunSön1+23)=Kalenderår,MONTH(JunSön1+23)=6),JunSön1+23,\"\"))","v":"2019-06-18"},{"$f":"IF(DAY(JunSön1)=1,IF(AND(YEAR(JunSön1+17)=Kalenderår,MONTH(JunSön1+17)=6),JunSön1+17,\"\"),IF(AND(YEAR(JunSön1+24)=Kalenderår,MONTH(JunSön1+24)=6),JunSön1+24,\"\"))","v":"2019-06-19"},{"$f":"IF(DAY(JunSön1)=1,IF(AND(YEAR(JunSön1+18)=Kalenderår,MONTH(JunSön1+18)=6),JunSön1+18,\"\"),IF(AND(YEAR(JunSön1+25)=Kalenderår,MONTH(JunSön1+25)=6),JunSön1+25,\"\"))","v":"2019-06-20"},{"$f":"IF(DAY(JunSön1)=1,IF(AND(YEAR(JunSön1+19)=Kalenderår,MONTH(JunSön1+19)=6),JunSön1+19,\"\"),IF(AND(YEAR(JunSön1+26)=Kalenderår,MONTH(JunSön1+26)=6),JunSön1+26,\"\"))","v":"2019-06-21"},{"$f":"IF(DAY(JunSön1)=1,IF(AND(YEAR(JunSön1+20)=Kalenderår,MONTH(JunSön1+20)=6),JunSön1+20,\"\"),IF(AND(YEAR(JunSön1+27)=Kalenderår,MONTH(JunSön1+27)=6),JunSön1+27,\"\"))","v":"2019-06-22"},{"$f":"IF(DAY(JunSön1)=1,IF(AND(YEAR(JunSön1+21)=Kalenderår,MONTH(JunSön1+21)=6),JunSön1+21,\"\"),IF(AND(YEAR(JunSön1+28)=Kalenderår,MONTH(JunSön1+28)=6),JunSön1+28,\"\"))","v":"2019-06-23"}]
[null,null,{"$f":"IF(DAY(MajSön1)=1,IF(AND(YEAR(MajSön1+22)=Kalenderår,MONTH(MajSön1+22)=5),MajSön1+22,\"\"),IF(AND(YEAR(MajSön1+29)=Kalenderår,MONTH(MajSön1+29)=5),MajSön1+29,\"\"))","v":"2019-05-27"},{"$f":"IF(DAY(MajSön1)=1,IF(AND(YEAR(MajSön1+23)=Kalenderår,MONTH(MajSön1+23)=5),MajSön1+23,\"\"),IF(AND(YEAR(MajSön1+30)=Kalenderår,MONTH(MajSön1+30)=5),MajSön1+30,\"\"))","v":"2019-05-28"},{"$f":"IF(DAY(MajSön1)=1,IF(AND(YEAR(MajSön1+24)=Kalenderår,MONTH(MajSön1+24)=5),MajSön1+24,\"\"),IF(AND(YEAR(MajSön1+31)=Kalenderår,MONTH(MajSön1+31)=5),MajSön1+31,\"\"))","v":"2019-05-29"},{"$f":"IF(DAY(MajSön1)=1,IF(AND(YEAR(MajSön1+25)=Kalenderår,MONTH(MajSön1+25)=5),MajSön1+25,\"\"),IF(AND(YEAR(MajSön1+32)=Kalenderår,MONTH(MajSön1+32)=5),MajSön1+32,\"\"))","v":"2019-05-30"},{"$f":"IF(DAY(MajSön1)=1,IF(AND(YEAR(MajSön1+26)=Kalenderår,MONTH(MajSön1+26)=5),MajSön1+26,\"\"),IF(AND(YEAR(MajSön1+33)=Kalenderår,MONTH(MajSön1+33)=5),MajSön1+33,\"\"))","v":"2019-05-31"},{"$f":"IF(DAY(MajSön1)=1,IF(AND(YEAR(MajSön1+27)=Kalenderår,MONTH(MajSön1+27)=5),MajSön1+27,\"\"),IF(AND(YEAR(MajSön1+34)=Kalenderår,MONTH(MajSön1+34)=5),MajSön1+34,\"\"))","v":""},{"$f":"IF(DAY(MajSön1)=1,IF(AND(YEAR(MajSön1+28)=Kalenderår,MONTH(MajSön1+28)=5),MajSön1+28,\"\"),IF(AND(YEAR(MajSön1+35)=Kalenderår,MONTH(MajSön1+35)=5),MajSön1+35,\"\"))","v":""},null,{"$f":"IF(DAY(JunSön1)=1,IF(AND(YEAR(JunSön1+22)=Kalenderår,MONTH(JunSön1+22)=6),JunSön1+22,\"\"),IF(AND(YEAR(JunSön1+29)=Kalenderår,MONTH(JunSön1+29)=6),JunSön1+29,\"\"))","v":"2019-06-24"},{"$f":"IF(DAY(JunSön1)=1,IF(AND(YEAR(JunSön1+23)=Kalenderår,MONTH(JunSön1+23)=6),JunSön1+23,\"\"),IF(AND(YEAR(JunSön1+30)=Kalenderår,MONTH(JunSön1+30)=6),JunSön1+30,\"\"))","v":"2019-06-25"},{"$f":"IF(DAY(JunSön1)=1,IF(AND(YEAR(JunSön1+24)=Kalenderår,MONTH(JunSön1+24)=6),JunSön1+24,\"\"),IF(AND(YEAR(JunSön1+31)=Kalenderår,MONTH(JunSön1+31)=6),JunSön1+31,\"\"))","v":"2019-06-26"},{"$f":"IF(DAY(JunSön1)=1,IF(AND(YEAR(JunSön1+25)=Kalenderår,MONTH(JunSön1+25)=6),JunSön1+25,\"\"),IF(AND(YEAR(JunSön1+32)=Kalenderår,MONTH(JunSön1+32)=6),JunSön1+32,\"\"))","v":"2019-06-27"},{"$f":"IF(DAY(JunSön1)=1,IF(AND(YEAR(JunSön1+26)=Kalenderår,MONTH(JunSön1+26)=6),JunSön1+26,\"\"),IF(AND(YEAR(JunSön1+33)=Kalenderår,MONTH(JunSön1+33)=6),JunSön1+33,\"\"))","v":"2019-06-28"},{"$f":"IF(DAY(JunSön1)=1,IF(AND(YEAR(JunSön1+27)=Kalenderår,MONTH(JunSön1+27)=6),JunSön1+27,\"\"),IF(AND(YEAR(JunSön1+34)=Kalenderår,MONTH(JunSön1+34)=6),JunSön1+34,\"\"))","v":"2019-06-29"},{"$f":"IF(DAY(JunSön1)=1,IF(AND(YEAR(JunSön1+28)=Kalenderår,MONTH(JunSön1+28)=6),JunSön1+28,\"\"),IF(AND(YEAR(JunSön1+35)=Kalenderår,MONTH(JunSön1+35)=6),JunSön1+35,\"\"))","v":"2019-06-30"}]
[null,null,{"$f":"IF(DAY(MajSön1)=1,IF(AND(YEAR(MajSön1+29)=Kalenderår,MONTH(MajSön1+29)=5),MajSön1+29,\"\"),IF(AND(YEAR(MajSön1+36)=Kalenderår,MONTH(MajSön1+36)=5),MajSön1+36,\"\"))","v":""},{"$f":"IF(DAY(MajSön1)=1,IF(AND(YEAR(MajSön1+30)=Kalenderår,MONTH(MajSön1+30)=5),MajSön1+30,\"\"),IF(AND(YEAR(MajSön1+37)=Kalenderår,MONTH(MajSön1+37)=5),MajSön1+37,\"\"))","v":""},{"$f":"IF(DAY(MajSön1)=1,IF(AND(YEAR(MajSön1+31)=Kalenderår,MONTH(MajSön1+31)=5),MajSön1+31,\"\"),IF(AND(YEAR(MajSön1+38)=Kalenderår,MONTH(MajSön1+38)=5),MajSön1+38,\"\"))","v":""},{"$f":"IF(DAY(MajSön1)=1,IF(AND(YEAR(MajSön1+32)=Kalenderår,MONTH(MajSön1+32)=5),MajSön1+32,\"\"),IF(AND(YEAR(MajSön1+39)=Kalenderår,MONTH(MajSön1+39)=5),MajSön1+39,\"\"))","v":""},{"$f":"IF(DAY(MajSön1)=1,IF(AND(YEAR(MajSön1+33)=Kalenderår,MONTH(MajSön1+33)=5),MajSön1+33,\"\"),IF(AND(YEAR(MajSön1+40)=Kalenderår,MONTH(MajSön1+40)=5),MajSön1+40,\"\"))","v":""},{"$f":"IF(DAY(MajSön1)=1,IF(AND(YEAR(MajSön1+34)=Kalenderår,MONTH(MajSön1+34)=5),MajSön1+34,\"\"),IF(AND(YEAR(MajSön1+41)=Kalenderår,MONTH(MajSön1+41)=5),MajSön1+41,\"\"))","v":""},{"$f":"IF(DAY(MajSön1)=1,IF(AND(YEAR(MajSön1+35)=Kalenderår,MONTH(MajSön1+35)=5),MajSön1+35,\"\"),IF(AND(YEAR(MajSön1+42)=Kalenderår,MONTH(MajSön1+42)=5),MajSön1+42,\"\"))","v":""},null,{"$f":"IF(DAY(JunSön1)=1,IF(AND(YEAR(JunSön1+29)=Kalenderår,MONTH(JunSön1+29)=6),JunSön1+29,\"\"),IF(AND(YEAR(JunSön1+36)=Kalenderår,MONTH(JunSön1+36)=6),JunSön1+36,\"\"))","v":""},{"$f":"IF(DAY(JunSön1)=1,IF(AND(YEAR(JunSön1+30)=Kalenderår,MONTH(JunSön1+30)=6),JunSön1+30,\"\"),IF(AND(YEAR(JunSön1+37)=Kalenderår,MONTH(JunSön1+37)=6),JunSön1+37,\"\"))","v":""},{"$f":"IF(DAY(JunSön1)=1,IF(AND(YEAR(JunSön1+31)=Kalenderår,MONTH(JunSön1+31)=6),JunSön1+31,\"\"),IF(AND(YEAR(JunSön1+38)=Kalenderår,MONTH(JunSön1+38)=6),JunSön1+38,\"\"))","v":""},{"$f":"IF(DAY(JunSön1)=1,IF(AND(YEAR(JunSön1+32)=Kalenderår,MONTH(JunSön1+32)=6),JunSön1+32,\"\"),IF(AND(YEAR(JunSön1+39)=Kalenderår,MONTH(JunSön1+39)=6),JunSön1+39,\"\"))","v":""},{"$f":"IF(DAY(JunSön1)=1,IF(AND(YEAR(JunSön1+33)=Kalenderår,MONTH(JunSön1+33)=6),JunSön1+33,\"\"),IF(AND(YEAR(JunSön1+40)=Kalenderår,MONTH(JunSön1+40)=6),JunSön1+40,\"\"))","v":""},{"$f":"IF(DAY(JunSön1)=1,IF(AND(YEAR(JunSön1+34)=Kalenderår,MONTH(JunSön1+34)=6),JunSön1+34,\"\"),IF(AND(YEAR(JunSön1+41)=Kalenderår,MONTH(JunSön1+41)=6),JunSön1+41,\"\"))","v":""},{"$f":"IF(DAY(JunSön1)=1,IF(AND(YEAR(JunSön1+35)=Kalenderår,MONTH(JunSön1+35)=6),JunSön1+35,\"\"),IF(AND(YEAR(JunSön1+42)=Kalenderår,MONTH(JunSön1+42)=6),JunSön1+42,\"\"))","v":""}]
[]
[null,null,"JULI",{"$nulls":7},"AUGUSTI"]
[null,null,"M","T","O","T","F","L","S",null,"M","T","O","T","F","L","S"]
[null,null,{"$f":"IF(DAY(JulSön1)=1,\"\",IF(AND(YEAR(JulSön1+1)=Kalenderår,MONTH(JulSön1+1)=7),JulSön1+1,\"\"))","v":"2019-07-01"},{"$f":"IF(DAY(JulSön1)=1,\"\",IF(AND(YEAR(JulSön1+2)=Kalenderår,MONTH(JulSön1+2)=7),JulSön1+2,\"\"))","v":"2019-07-02"},{"$f":"IF(DAY(JulSön1)=1,\"\",IF(AND(YEAR(JulSön1+3)=Kalenderår,MONTH(JulSön1+3)=7),JulSön1+3,\"\"))","v":"2019-07-03"},{"$f":"IF(DAY(JulSön1)=1,\"\",IF(AND(YEAR(JulSön1+4)=Kalenderår,MONTH(JulSön1+4)=7),JulSön1+4,\"\"))","v":"2019-07-04"},{"$f":"IF(DAY(JulSön1)=1,\"\",IF(AND(YEAR(JulSön1+5)=Kalenderår,MONTH(JulSön1+5)=7),JulSön1+5,\"\"))","v":"2019-07-05"},{"$f":"IF(DAY(JulSön1)=1,\"\",IF(AND(YEAR(JulSön1+6)=Kalenderår,MONTH(JulSön1+6)=7),JulSön1+6,\"\"))","v":"2019-07-06"},{"$f":"IF(DAY(JulSön1)=1,IF(AND(YEAR(JulSön1)=Kalenderår,MONTH(JulSön1)=7),JulSön1,\"\"),IF(AND(YEAR(JulSön1+7)=Kalenderår,MONTH(JulSön1+7)=7),JulSön1+7,\"\"))","v":"2019-07-07"},null,{"$f":"IF(DAY(AugSön1)=1,\"\",IF(AND(YEAR(AugSön1+1)=Kalenderår,MONTH(AugSön1+1)=8),AugSön1+1,\"\"))","v":""},{"$f":"IF(DAY(AugSön1)=1,\"\",IF(AND(YEAR(AugSön1+2)=Kalenderår,MONTH(AugSön1+2)=8),AugSön1+2,\"\"))","v":""},{"$f":"IF(DAY(AugSön1)=1,\"\",IF(AND(YEAR(AugSön1+3)=Kalenderår,MONTH(AugSön1+3)=8),AugSön1+3,\"\"))","v":""},{"$f":"IF(DAY(AugSön1)=1,\"\",IF(AND(YEAR(AugSön1+4)=Kalenderår,MONTH(AugSön1+4)=8),AugSön1+4,\"\"))","v":"2019-08-01"},{"$f":"IF(DAY(AugSön1)=1,\"\",IF(AND(YEAR(AugSön1+5)=Kalenderår,MONTH(AugSön1+5)=8),AugSön1+5,\"\"))","v":"2019-08-02"},{"$f":"IF(DAY(AugSön1)=1,\"\",IF(AND(YEAR(AugSön1+6)=Kalenderår,MONTH(AugSön1+6)=8),AugSön1+6,\"\"))","v":"2019-08-03"},{"$f":"IF(DAY(AugSön1)=1,IF(AND(YEAR(AugSön1)=Kalenderår,MONTH(AugSön1)=8),AugSön1,\"\"),IF(AND(YEAR(AugSön1+7)=Kalenderår,MONTH(AugSön1+7)=8),AugSön1+7,\"\"))","v":"2019-08-04"}]
[null,null,{"$f":"IF(DAY(JulSön1)=1,IF(AND(YEAR(JulSön1+1)=Kalenderår,MONTH(JulSön1+1)=7),JulSön1+1,\"\"),IF(AND(YEAR(JulSön1+8)=Kalenderår,MONTH(JulSön1+8)=7),JulSön1+8,\"\"))","v":"2019-07-08"},{"$f":"IF(DAY(JulSön1)=1,IF(AND(YEAR(JulSön1+2)=Kalenderår,MONTH(JulSön1+2)=7),JulSön1+2,\"\"),IF(AND(YEAR(JulSön1+9)=Kalenderår,MONTH(JulSön1+9)=7),JulSön1+9,\"\"))","v":"2019-07-09"},{"$f":"IF(DAY(JulSön1)=1,IF(AND(YEAR(JulSön1+3)=Kalenderår,MONTH(JulSön1+3)=7),JulSön1+3,\"\"),IF(AND(YEAR(JulSön1+10)=Kalenderår,MONTH(JulSön1+10)=7),JulSön1+10,\"\"))","v":"2019-07-10"},{"$f":"IF(DAY(JulSön1)=1,IF(AND(YEAR(JulSön1+4)=Kalenderår,MONTH(JulSön1+4)=7),JulSön1+4,\"\"),IF(AND(YEAR(JulSön1+11)=Kalenderår,MONTH(JulSön1+11)=7),JulSön1+11,\"\"))","v":"2019-07-11"},{"$f":"IF(DAY(JulSön1)=1,IF(AND(YEAR(JulSön1+5)=Kalenderår,MONTH(JulSön1+5)=7),JulSön1+5,\"\"),IF(AND(YEAR(JulSön1+12)=Kalenderår,MONTH(JulSön1+12)=7),JulSön1+12,\"\"))","v":"2019-07-12"},{"$f":"IF(DAY(JulSön1)=1,IF(AND(YEAR(JulSön1+6)=Kalenderår,MONTH(JulSön1+6)=7),JulSön1+6,\"\"),IF(AND(YEAR(JulSön1+13)=Kalenderår,MONTH(JulSön1+13)=7),JulSön1+13,\"\"))","v":"2019-07-13"},{"$f":"IF(DAY(JulSön1)=1,IF(AND(YEAR(JulSön1+7)=Kalenderår,MONTH(JulSön1+7)=7),JulSön1+7,\"\"),IF(AND(YEAR(JulSön1+14)=Kalenderår,MONTH(JulSön1+14)=7),JulSön1+14,\"\"))","v":"2019-07-14"},null,{"$f":"IF(DAY(AugSön1)=1,IF(AND(YEAR(AugSön1+1)=Kalenderår,MONTH(AugSön1+1)=8),AugSön1+1,\"\"),IF(AND(YEAR(AugSön1+8)=Kalenderår,MONTH(AugSön1+8)=8),AugSön1+8,\"\"))","v":"2019-08-05"},{"$f":"IF(DAY(AugSön1)=1,IF(AND(YEAR(AugSön1+2)=Kalenderår,MONTH(AugSön1+2)=8),AugSön1+2,\"\"),IF(AND(YEAR(AugSön1+9)=Kalenderår,MONTH(AugSön1+9)=8),AugSön1+9,\"\"))","v":"2019-08-06"},{"$f":"IF(DAY(AugSön1)=1,IF(AND(YEAR(AugSön1+3)=Kalenderår,MONTH(AugSön1+3)=8),AugSön1+3,\"\"),IF(AND(YEAR(AugSön1+10)=Kalenderår,MONTH(AugSön1+10)=8),AugSön1+10,\"\"))","v":"2019-08-07"},{"$f":"IF(DAY(AugSön1)=1,IF(AND(YEAR(AugSön1+4)=Kalenderår,MONTH(AugSön1+4)=8),AugSön1+4,\"\"),IF(AND(YEAR(AugSön1+11)=Kalenderår,MONTH(AugSön1+11)=8),AugSön1+11,\"\"))","v":"2019-08-08"},{"$f":"IF(DAY(AugSön1)=1,IF(AND(YEAR(AugSön1+5)=Kalenderår,MONTH(AugSön1+5)=8),AugSön1+5,\"\"),IF(AND(YEAR(AugSön1+12)=Kalenderår,MONTH(AugSön1+12)=8),AugSön1+12,\"\"))","v":"2019-08-09"},{"$f":"IF(DAY(AugSön1)=1,IF(AND(YEAR(AugSön1+6)=Kalenderår,MONTH(AugSön1+6)=8),AugSön1+6,\"\"),IF(AND(YEAR(AugSön1+13)=Kalenderår,MONTH(AugSön1+13)=8),AugSön1+13,\"\"))","v":"2019-08-10"},{"$f":"IF(DAY(AugSön1)=1,IF(AND(YEAR(AugSön1+7)=Kalenderår,MONTH(AugSön1+7)=8),AugSön1+7,\"\"),IF(AND(YEAR(AugSön1+14)=Kalenderår,MONTH(AugSön1+14)=8),AugSön1+14,\"\"))","v":"2019-08-11"}]
[null,null,{"$f":"IF(DAY(JulSön1)=1,IF(AND(YEAR(JulSön1+8)=Kalenderår,MONTH(JulSön1+8)=7),JulSön1+8,\"\"),IF(AND(YEAR(JulSön1+15)=Kalenderår,MONTH(JulSön1+15)=7),JulSön1+15,\"\"))","v":"2019-07-15"},{"$f":"IF(DAY(JulSön1)=1,IF(AND(YEAR(JulSön1+9)=Kalenderår,MONTH(JulSön1+9)=7),JulSön1+9,\"\"),IF(AND(YEAR(JulSön1+16)=Kalenderår,MONTH(JulSön1+16)=7),JulSön1+16,\"\"))","v":"2019-07-16"},{"$f":"IF(DAY(JulSön1)=1,IF(AND(YEAR(JulSön1+10)=Kalenderår,MONTH(JulSön1+10)=7),JulSön1+10,\"\"),IF(AND(YEAR(JulSön1+17)=Kalenderår,MONTH(JulSön1+17)=7),JulSön1+17,\"\"))","v":"2019-07-17"},{"$f":"IF(DAY(JulSön1)=1,IF(AND(YEAR(JulSön1+11)=Kalenderår,MONTH(JulSön1+11)=7),JulSön1+11,\"\"),IF(AND(YEAR(JulSön1+18)=Kalenderår,MONTH(JulSön1+18)=7),JulSön1+18,\"\"))","v":"2019-07-18"},{"$f":"IF(DAY(JulSön1)=1,IF(AND(YEAR(JulSön1+12)=Kalenderår,MONTH(JulSön1+12)=7),JulSön1+12,\"\"),IF(AND(YEAR(JulSön1+19)=Kalenderår,MONTH(JulSön1+19)=7),JulSön1+19,\"\"))","v":"2019-07-19"},{"$f":"IF(DAY(JulSön1)=1,IF(AND(YEAR(JulSön1+13)=Kalenderår,MONTH(JulSön1+13)=7),JulSön1+13,\"\"),IF(AND(YEAR(JulSön1+20)=Kalenderår,MONTH(JulSön1+20)=7),JulSön1+20,\"\"))","v":"2019-07-20"},{"$f":"IF(DAY(JulSön1)=1,IF(AND(YEAR(JulSön1+14)=Kalenderår,MONTH(JulSön1+14)=7),JulSön1+14,\"\"),IF(AND(YEAR(JulSön1+21)=Kalenderår,MONTH(JulSön1+21)=7),JulSön1+21,\"\"))","v":"2019-07-21"},null,{"$f":"IF(DAY(AugSön1)=1,IF(AND(YEAR(AugSön1+8)=Kalenderår,MONTH(AugSön1+8)=8),AugSön1+8,\"\"),IF(AND(YEAR(AugSön1+15)=Kalenderår,MONTH(AugSön1+15)=8),AugSön1+15,\"\"))","v":"2019-08-12"},{"$f":"IF(DAY(AugSön1)=1,IF(AND(YEAR(AugSön1+9)=Kalenderår,MONTH(AugSön1+9)=8),AugSön1+9,\"\"),IF(AND(YEAR(AugSön1+16)=Kalenderår,MONTH(AugSön1+16)=8),AugSön1+16,\"\"))","v":"2019-08-13"},{"$f":"IF(DAY(AugSön1)=1,IF(AND(YEAR(AugSön1+10)=Kalenderår,MONTH(AugSön1+10)=8),AugSön1+10,\"\"),IF(AND(YEAR(AugSön1+17)=Kalenderår,MONTH(AugSön1+17)=8),AugSön1+17,\"\"))","v":"2019-08-14"},{"$f":"IF(DAY(AugSön1)=1,IF(AND(YEAR(AugSön1+11)=Kalenderår,MONTH(AugSön1+11)=8),AugSön1+11,\"\"),IF(AND(YEAR(AugSön1+18)=Kalenderår,MONTH(AugSön1+18)=8),AugSön1+18,\"\"))","v":"2019-08-15"},{"$f":"IF(DAY(AugSön1)=1,IF(AND(YEAR(AugSön1+12)=Kalenderår,MONTH(AugSön1+12)=8),AugSön1+12,\"\"),IF(AND(YEAR(AugSön1+19)=Kalenderår,MONTH(AugSön1+19)=8),AugSön1+19,\"\"))","v":"2019-08-16"},{"$f":"IF(DAY(AugSön1)=1,IF(AND(YEAR(AugSön1+13)=Kalenderår,MONTH(AugSön1+13)=8),AugSön1+13,\"\"),IF(AND(YEAR(AugSön1+20)=Kalenderår,MONTH(AugSön1+20)=8),AugSön1+20,\"\"))","v":"2019-08-17"},{"$f":"IF(DAY(AugSön1)=1,IF(AND(YEAR(AugSön1+14)=Kalenderår,MONTH(AugSön1+14)=8),AugSön1+14,\"\"),IF(AND(YEAR(AugSön1+21)=Kalenderår,MONTH(AugSön1+21)=8),AugSön1+21,\"\"))","v":"2019-08-18"}]
[null,null,{"$f":"IF(DAY(JulSön1)=1,IF(AND(YEAR(JulSön1+15)=Kalenderår,MONTH(JulSön1+15)=7),JulSön1+15,\"\"),IF(AND(YEAR(JulSön1+22)=Kalenderår,MONTH(JulSön1+22)=7),JulSön1+22,\"\"))","v":"2019-07-22"},{"$f":"IF(DAY(JulSön1)=1,IF(AND(YEAR(JulSön1+16)=Kalenderår,MONTH(JulSön1+16)=7),JulSön1+16,\"\"),IF(AND(YEAR(JulSön1+23)=Kalenderår,MONTH(JulSön1+23)=7),JulSön1+23,\"\"))","v":"2019-07-23"},{"$f":"IF(DAY(JulSön1)=1,IF(AND(YEAR(JulSön1+17)=Kalenderår,MONTH(JulSön1+17)=7),JulSön1+17,\"\"),IF(AND(YEAR(JulSön1+24)=Kalenderår,MONTH(JulSön1+24)=7),JulSön1+24,\"\"))","v":"2019-07-24"},{"$f":"IF(DAY(JulSön1)=1,IF(AND(YEAR(JulSön1+18)=Kalenderår,MONTH(JulSön1+18)=7),JulSön1+18,\"\"),IF(AND(YEAR(JulSön1+25)=Kalenderår,MONTH(JulSön1+25)=7),JulSön1+25,\"\"))","v":"2019-07-25"},{"$f":"IF(DAY(JulSön1)=1,IF(AND(YEAR(JulSön1+19)=Kalenderår,MONTH(JulSön1+19)=7),JulSön1+19,\"\"),IF(AND(YEAR(JulSön1+26)=Kalenderår,MONTH(JulSön1+26)=7),JulSön1+26,\"\"))","v":"2019-07-26"},{"$f":"IF(DAY(JulSön1)=1,IF(AND(YEAR(JulSön1+20)=Kalenderår,MONTH(JulSön1+20)=7),JulSön1+20,\"\"),IF(AND(YEAR(JulSön1+27)=Kalenderår,MONTH(JulSön1+27)=7),JulSön1+27,\"\"))","v":"2019-07-27"},{"$f":"IF(DAY(JulSön1)=1,IF(AND(YEAR(JulSön1+21)=Kalenderår,MONTH(JulSön1+21)=7),JulSön1+21,\"\"),IF(AND(YEAR(JulSön1+28)=Kalenderår,MONTH(JulSön1+28)=7),JulSön1+28,\"\"))","v":"2019-07-28"},null,{"$f":"IF(DAY(AugSön1)=1,IF(AND(YEAR(AugSön1+15)=Kalenderår,MONTH(AugSön1+15)=8),AugSön1+15,\"\"),IF(AND(YEAR(AugSön1+22)=Kalenderår,MONTH(AugSön1+22)=8),AugSön1+22,\"\"))","v":"2019-08-19"},{"$f":"IF(DAY(AugSön1)=1,IF(AND(YEAR(AugSön1+16)=Kalenderår,MONTH(AugSön1+16)=8),AugSön1+16,\"\"),IF(AND(YEAR(AugSön1+23)=Kalenderår,MONTH(AugSön1+23)=8),AugSön1+23,\"\"))","v":"2019-08-20"},{"$f":"IF(DAY(AugSön1)=1,IF(AND(YEAR(AugSön1+17)=Kalenderår,MONTH(AugSön1+17)=8),AugSön1+17,\"\"),IF(AND(YEAR(AugSön1+24)=Kalenderår,MONTH(AugSön1+24)=8),AugSön1+24,\"\"))","v":"2019-08-21"},{"$f":"IF(DAY(AugSön1)=1,IF(AND(YEAR(AugSön1+18)=Kalenderår,MONTH(AugSön1+18)=8),AugSön1+18,\"\"),IF(AND(YEAR(AugSön1+25)=Kalenderår,MONTH(AugSön1+25)=8),AugSön1+25,\"\"))","v":"2019-08-22"},{"$f":"IF(DAY(AugSön1)=1,IF(AND(YEAR(AugSön1+19)=Kalenderår,MONTH(AugSön1+19)=8),AugSön1+19,\"\"),IF(AND(YEAR(AugSön1+26)=Kalenderår,MONTH(AugSön1+26)=8),AugSön1+26,\"\"))","v":"2019-08-23"},{"$f":"IF(DAY(AugSön1)=1,IF(AND(YEAR(AugSön1+20)=Kalenderår,MONTH(AugSön1+20)=8),AugSön1+20,\"\"),IF(AND(YEAR(AugSön1+27)=Kalenderår,MONTH(AugSön1+27)=8),AugSön1+27,\"\"))","v":"2019-08-24"},{"$f":"IF(DAY(AugSön1)=1,IF(AND(YEAR(AugSön1+21)=Kalenderår,MONTH(AugSön1+21)=8),AugSön1+21,\"\"),IF(AND(YEAR(AugSön1+28)=Kalenderår,MONTH(AugSön1+28)=8),AugSön1+28,\"\"))","v":"2019-08-25"}]
[null,null,{"$f":"IF(DAY(JulSön1)=1,IF(AND(YEAR(JulSön1+22)=Kalenderår,MONTH(JulSön1+22)=7),JulSön1+22,\"\"),IF(AND(YEAR(JulSön1+29)=Kalenderår,MONTH(JulSön1+29)=7),JulSön1+29,\"\"))","v":"2019-07-29"},{"$f":"IF(DAY(JulSön1)=1,IF(AND(YEAR(JulSön1+23)=Kalenderår,MONTH(JulSön1+23)=7),JulSön1+23,\"\"),IF(AND(YEAR(JulSön1+30)=Kalenderår,MONTH(JulSön1+30)=7),JulSön1+30,\"\"))","v":"2019-07-30"},{"$f":"IF(DAY(JulSön1)=1,IF(AND(YEAR(JulSön1+24)=Kalenderår,MONTH(JulSön1+24)=7),JulSön1+24,\"\"),IF(AND(YEAR(JulSön1+31)=Kalenderår,MONTH(JulSön1+31)=7),JulSön1+31,\"\"))","v":"2019-07-31"},{"$f":"IF(DAY(JulSön1)=1,IF(AND(YEAR(JulSön1+25)=Kalenderår,MONTH(JulSön1+25)=7),JulSön1+25,\"\"),IF(AND(YEAR(JulSön1+32)=Kalenderår,MONTH(JulSön1+32)=7),JulSön1+32,\"\"))","v":""},{"$f":"IF(DAY(JulSön1)=1,IF(AND(YEAR(JulSön1+26)=Kalenderår,MONTH(JulSön1+26)=7),JulSön1+26,\"\"),IF(AND(YEAR(JulSön1+33)=Kalenderår,MONTH(JulSön1+33)=7),JulSön1+33,\"\"))","v":""},{"$f":"IF(DAY(JulSön1)=1,IF(AND(YEAR(JulSön1+27)=Kalenderår,MONTH(JulSön1+27)=7),JulSön1+27,\"\"),IF(AND(YEAR(JulSön1+34)=Kalenderår,MONTH(JulSön1+34)=7),JulSön1+34,\"\"))","v":""},{"$f":"IF(DAY(JulSön1)=1,IF(AND(YEAR(JulSön1+28)=Kalenderår,MONTH(JulSön1+28)=7),JulSön1+28,\"\"),IF(AND(YEAR(JulSön1+35)=Kalenderår,MONTH(JulSön1+35)=7),JulSön1+35,\"\"))","v":""},null,{"$f":"IF(DAY(AugSön1)=1,IF(AND(YEAR(AugSön1+22)=Kalenderår,MONTH(AugSön1+22)=8),AugSön1+22,\"\"),IF(AND(YEAR(AugSön1+29)=Kalenderår,MONTH(AugSön1+29)=8),AugSön1+29,\"\"))","v":"2019-08-26"},{"$f":"IF(DAY(AugSön1)=1,IF(AND(YEAR(AugSön1+23)=Kalenderår,MONTH(AugSön1+23)=8),AugSön1+23,\"\"),IF(AND(YEAR(AugSön1+30)=Kalenderår,MONTH(AugSön1+30)=8),AugSön1+30,\"\"))","v":"2019-08-27"},{"$f":"IF(DAY(AugSön1)=1,IF(AND(YEAR(AugSön1+24)=Kalenderår,MONTH(AugSön1+24)=8),AugSön1+24,\"\"),IF(AND(YEAR(AugSön1+31)=Kalenderår,MONTH(AugSön1+31)=8),AugSön1+31,\"\"))","v":"2019-08-28"},{"$f":"IF(DAY(AugSön1)=1,IF(AND(YEAR(AugSön1+25)=Kalenderår,MONTH(AugSön1+25)=8),AugSön1+25,\"\"),IF(AND(YEAR(AugSön1+32)=Kalenderår,MONTH(AugSön1+32)=8),AugSön1+32,\"\"))","v":"2019-08-29"},{"$f":"IF(DAY(AugSön1)=1,IF(AND(YEAR(AugSön1+26)=Kalenderår,MONTH(AugSön1+26)=8),AugSön1+26,\"\"),IF(AND(YEAR(AugSön1+33)=Kalenderår,MONTH(AugSön1+33)=8),AugSön1+33,\"\"))","v":"2019-08-30"},{"$f":"IF(DAY(AugSön1)=1,IF(AND(YEAR(AugSön1+27)=Kalenderår,MONTH(AugSön1+27)=8),AugSön1+27,\"\"),IF(AND(YEAR(AugSön1+34)=Kalenderår,MONTH(AugSön1+34)=8),AugSön1+34,\"\"))","v":"2019-08-31"},{"$f":"IF(DAY(AugSön1)=1,IF(AND(YEAR(AugSön1+28)=Kalenderår,MONTH(AugSön1+28)=8),AugSön1+28,\"\"),IF(AND(YEAR(AugSön1+35)=Kalenderår,MONTH(AugSön1+35)=8),AugSön1+35,\"\"))","v":""}]
[null,null,{"$f":"IF(DAY(JulSön1)=1,IF(AND(YEAR(JulSön1+29)=Kalenderår,MONTH(JulSön1+29)=7),JulSön1+29,\"\"),IF(AND(YEAR(JulSön1+36)=Kalenderår,MONTH(JulSön1+36)=7),JulSön1+36,\"\"))","v":""},{"$f":"IF(DAY(JulSön1)=1,IF(AND(YEAR(JulSön1+30)=Kalenderår,MONTH(JulSön1+30)=7),JulSön1+30,\"\"),IF(AND(YEAR(JulSön1+37)=Kalenderår,MONTH(JulSön1+37)=7),JulSön1+37,\"\"))","v":""},{"$f":"IF(DAY(JulSön1)=1,IF(AND(YEAR(JulSön1+31)=Kalenderår,MONTH(JulSön1+31)=7),JulSön1+31,\"\"),IF(AND(YEAR(JulSön1+38)=Kalenderår,MONTH(JulSön1+38)=7),JulSön1+38,\"\"))","v":""},{"$f":"IF(DAY(JulSön1)=1,IF(AND(YEAR(JulSön1+32)=Kalenderår,MONTH(JulSön1+32)=7),JulSön1+32,\"\"),IF(AND(YEAR(JulSön1+39)=Kalenderår,MONTH(JulSön1+39)=7),JulSön1+39,\"\"))","v":""},{"$f":"IF(DAY(JulSön1)=1,IF(AND(YEAR(JulSön1+33)=Kalenderår,MONTH(JulSön1+33)=7),JulSön1+33,\"\"),IF(AND(YEAR(JulSön1+40)=Kalenderår,MONTH(JulSön1+40)=7),JulSön1+40,\"\"))","v":""},{"$f":"IF(DAY(JulSön1)=1,IF(AND(YEAR(JulSön1+34)=Kalenderår,MONTH(JulSön1+34)=7),JulSön1+34,\"\"),IF(AND(YEAR(JulSön1+41)=Kalenderår,MONTH(JulSön1+41)=7),JulSön1+41,\"\"))","v":""},{"$f":"IF(DAY(JulSön1)=1,IF(AND(YEAR(JulSön1+35)=Kalenderår,MONTH(JulSön1+35)=7),JulSön1+35,\"\"),IF(AND(YEAR(JulSön1+42)=Kalenderår,MONTH(JulSön1+42)=7),JulSön1+42,\"\"))","v":""},null,{"$f":"IF(DAY(AugSön1)=1,IF(AND(YEAR(AugSön1+29)=Kalenderår,MONTH(AugSön1+29)=8),AugSön1+29,\"\"),IF(AND(YEAR(AugSön1+36)=Kalenderår,MONTH(AugSön1+36)=8),AugSön1+36,\"\"))","v":""},{"$f":"IF(DAY(AugSön1)=1,IF(AND(YEAR(AugSön1+30)=Kalenderår,MONTH(AugSön1+30)=8),AugSön1+30,\"\"),IF(AND(YEAR(AugSön1+37)=Kalenderår,MONTH(AugSön1+37)=8),AugSön1+37,\"\"))","v":""},{"$f":"IF(DAY(AugSön1)=1,IF(AND(YEAR(AugSön1+31)=Kalenderår,MONTH(AugSön1+31)=8),AugSön1+31,\"\"),IF(AND(YEAR(AugSön1+38)=Kalenderår,MONTH(AugSön1+38)=8),AugSön1+38,\"\"))","v":""},{"$f":"IF(DAY(AugSön1)=1,IF(AND(YEAR(AugSön1+32)=Kalenderår,MONTH(AugSön1+32)=8),AugSön1+32,\"\"),IF(AND(YEAR(AugSön1+39)=Kalenderår,MONTH(AugSön1+39)=8),AugSön1+39,\"\"))","v":""},{"$f":"IF(DAY(AugSön1)=1,IF(AND(YEAR(AugSön1+33)=Kalenderår,MONTH(AugSön1+33)=8),AugSön1+33,\"\"),IF(AND(YEAR(AugSön1+40)=Kalenderår,MONTH(AugSön1+40)=8),AugSön1+40,\"\"))","v":""},{"$f":"IF(DAY(AugSön1)=1,IF(AND(YEAR(AugSön1+34)=Kalenderår,MONTH(AugSön1+34)=8),AugSön1+34,\"\"),IF(AND(YEAR(AugSön1+41)=Kalenderår,MONTH(AugSön1+41)=8),AugSön1+41,\"\"))","v":""},{"$f":"IF(DAY(AugSön1)=1,IF(AND(YEAR(AugSön1+35)=Kalenderår,MONTH(AugSön1+35)=8),AugSön1+35,\"\"),IF(AND(YEAR(AugSön1+42)=Kalenderår,MONTH(AugSön1+42)=8),AugSön1+42,\"\"))","v":""}]
[]
[null,null,"SEPTEMBER",{"$nulls":7},"OKTOBER"]
[null,null,"M","T","O","T","F","L","S",null,"M","T","O","T","F","L","S"]
[null,null,{"$f":"IF(DAY(SepSön1)=1,\"\",IF(AND(YEAR(SepSön1+1)=Kalenderår,MONTH(SepSön1+1)=9),SepSön1+1,\"\"))","v":""},{"$f":"IF(DAY(SepSön1)=1,\"\",IF(AND(YEAR(SepSön1+2)=Kalenderår,MONTH(SepSön1+2)=9),SepSön1+2,\"\"))","v":""},{"$f":"IF(DAY(SepSön1)=1,\"\",IF(AND(YEAR(SepSön1+3)=Kalenderår,MONTH(SepSön1+3)=9),SepSön1+3,\"\"))","v":""},{"$f":"IF(DAY(SepSön1)=1,\"\",IF(AND(YEAR(SepSön1+4)=Kalenderår,MONTH(SepSön1+4)=9),SepSön1+4,\"\"))","v":""},{"$f":"IF(DAY(SepSön1)=1,\"\",IF(AND(YEAR(SepSön1+5)=Kalenderår,MONTH(SepSön1+5)=9),SepSön1+5,\"\"))","v":""},{"$f":"IF(DAY(SepSön1)=1,\"\",IF(AND(YEAR(SepSön1+6)=Kalenderår,MONTH(SepSön1+6)=9),SepSön1+6,\"\"))","v":""},{"$f":"IF(DAY(SepSön1)=1,IF(AND(YEAR(SepSön1)=Kalenderår,MONTH(SepSön1)=9),SepSön1,\"\"),IF(AND(YEAR(SepSön1+7)=Kalenderår,MONTH(SepSön1+7)=9),SepSön1+7,\"\"))","v":"2019-09-01"},null,{"$f":"IF(DAY(OktSön1)=1,\"\",IF(AND(YEAR(OktSön1+1)=Kalenderår,MONTH(OktSön1+1)=10),OktSön1+1,\"\"))","v":""},{"$f":"IF(DAY(OktSön1)=1,\"\",IF(AND(YEAR(OktSön1+2)=Kalenderår,MONTH(OktSön1+2)=10),OktSön1+2,\"\"))","v":"2019-10-01"},{"$f":"IF(DAY(OktSön1)=1,\"\",IF(AND(YEAR(OktSön1+3)=Kalenderår,MONTH(OktSön1+3)=10),OktSön1+3,\"\"))","v":"2019-10-02"},{"$f":"IF(DAY(OktSön1)=1,\"\",IF(AND(YEAR(OktSön1+4)=Kalenderår,MONTH(OktSön1+4)=10),OktSön1+4,\"\"))","v":"2019-10-03"},{"$f":"IF(DAY(OktSön1)=1,\"\",IF(AND(YEAR(OktSön1+5)=Kalenderår,MONTH(OktSön1+5)=10),OktSön1+5,\"\"))","v":"2019-10-04"},{"$f":"IF(DAY(OktSön1)=1,\"\",IF(AND(YEAR(OktSön1+6)=Kalenderår,MONTH(OktSön1+6)=10),OktSön1+6,\"\"))","v":"2019-10-05"},{"$f":"IF(DAY(OktSön1)=1,IF(AND(YEAR(OktSön1)=Kalenderår,MONTH(OktSön1)=10),OktSön1,\"\"),IF(AND(YEAR(OktSön1+7)=Kalenderår,MONTH(OktSön1+7)=10),OktSön1+7,\"\"))","v":"2019-10-06"}]
[null,null,{"$f":"IF(DAY(SepSön1)=1,IF(AND(YEAR(SepSön1+1)=Kalenderår,MONTH(SepSön1+1)=9),SepSön1+1,\"\"),IF(AND(YEAR(SepSön1+8)=Kalenderår,MONTH(SepSön1+8)=9),SepSön1+8,\"\"))","v":"2019-09-02"},{"$f":"IF(DAY(SepSön1)=1,IF(AND(YEAR(SepSön1+2)=Kalenderår,MONTH(SepSön1+2)=9),SepSön1+2,\"\"),IF(AND(YEAR(SepSön1+9)=Kalenderår,MONTH(SepSön1+9)=9),SepSön1+9,\"\"))","v":"2019-09-03"},{"$f":"IF(DAY(SepSön1)=1,IF(AND(YEAR(SepSön1+3)=Kalenderår,MONTH(SepSön1+3)=9),SepSön1+3,\"\"),IF(AND(YEAR(SepSön1+10)=Kalenderår,MONTH(SepSön1+10)=9),SepSön1+10,\"\"))","v":"2019-09-04"},{"$f":"IF(DAY(SepSön1)=1,IF(AND(YEAR(SepSön1+4)=Kalenderår,MONTH(SepSön1+4)=9),SepSön1+4,\"\"),IF(AND(YEAR(SepSön1+11)=Kalenderår,MONTH(SepSön1+11)=9),SepSön1+11,\"\"))","v":"2019-09-05"},{"$f":"IF(DAY(SepSön1)=1,IF(AND(YEAR(SepSön1+5)=Kalenderår,MONTH(SepSön1+5)=9),SepSön1+5,\"\"),IF(AND(YEAR(SepSön1+12)=Kalenderår,MONTH(SepSön1+12)=9),SepSön1+12,\"\"))","v":"2019-09-06"},{"$f":"IF(DAY(SepSön1)=1,IF(AND(YEAR(SepSön1+6)=Kalenderår,MONTH(SepSön1+6)=9),SepSön1+6,\"\"),IF(AND(YEAR(SepSön1+13)=Kalenderår,MONTH(SepSön1+13)=9),SepSön1+13,\"\"))","v":"2019-09-07"},{"$f":"IF(DAY(SepSön1)=1,IF(AND(YEAR(SepSön1+7)=Kalenderår,MONTH(SepSön1+7)=9),SepSön1+7,\"\"),IF(AND(YEAR(SepSön1+14)=Kalenderår,MONTH(SepSön1+14)=9),SepSön1+14,\"\"))","v":"2019-09-08"},null,{"$f":"IF(DAY(OktSön1)=1,IF(AND(YEAR(OktSön1+1)=Kalenderår,MONTH(OktSön1+1)=10),OktSön1+1,\"\"),IF(AND(YEAR(OktSön1+8)=Kalenderår,MONTH(OktSön1+8)=10),OktSön1+8,\"\"))","v":"2019-10-07"},{"$f":"IF(DAY(OktSön1)=1,IF(AND(YEAR(OktSön1+2)=Kalenderår,MONTH(OktSön1+2)=10),OktSön1+2,\"\"),IF(AND(YEAR(OktSön1+9)=Kalenderår,MONTH(OktSön1+9)=10),OktSön1+9,\"\"))","v":"2019-10-08"},{"$f":"IF(DAY(OktSön1)=1,IF(AND(YEAR(OktSön1+3)=Kalenderår,MONTH(OktSön1+3)=10),OktSön1+3,\"\"),IF(AND(YEAR(OktSön1+10)=Kalenderår,MONTH(OktSön1+10)=10),OktSön1+10,\"\"))","v":"2019-10-09"},{"$f":"IF(DAY(OktSön1)=1,IF(AND(YEAR(OktSön1+4)=Kalenderår,MONTH(OktSön1+4)=10),OktSön1+4,\"\"),IF(AND(YEAR(OktSön1+11)=Kalenderår,MONTH(OktSön1+11)=10),OktSön1+11,\"\"))","v":"2019-10-10"},{"$f":"IF(DAY(OktSön1)=1,IF(AND(YEAR(OktSön1+5)=Kalenderår,MONTH(OktSön1+5)=10),OktSön1+5,\"\"),IF(AND(YEAR(OktSön1+12)=Kalenderår,MONTH(OktSön1+12)=10),OktSön1+12,\"\"))","v":"2019-10-11"},{"$f":"IF(DAY(OktSön1)=1,IF(AND(YEAR(OktSön1+6)=Kalenderår,MONTH(OktSön1+6)=10),OktSön1+6,\"\"),IF(AND(YEAR(OktSön1+13)=Kalenderår,MONTH(OktSön1+13)=10),OktSön1+13,\"\"))","v":"2019-10-12"},{"$f":"IF(DAY(OktSön1)=1,IF(AND(YEAR(OktSön1+7)=Kalenderår,MONTH(OktSön1+7)=10),OktSön1+7,\"\"),IF(AND(YEAR(OktSön1+14)=Kalenderår,MONTH(OktSön1+14)=10),OktSön1+14,\"\"))","v":"2019-10-13"}]
[null,null,{"$f":"IF(DAY(SepSön1)=1,IF(AND(YEAR(SepSön1+8)=Kalenderår,MONTH(SepSön1+8)=9),SepSön1+8,\"\"),IF(AND(YEAR(SepSön1+15)=Kalenderår,MONTH(SepSön1+15)=9),SepSön1+15,\"\"))","v":"2019-09-09"},{"$f":"IF(DAY(SepSön1)=1,IF(AND(YEAR(SepSön1+9)=Kalenderår,MONTH(SepSön1+9)=9),SepSön1+9,\"\"),IF(AND(YEAR(SepSön1+16)=Kalenderår,MONTH(SepSön1+16)=9),SepSön1+16,\"\"))","v":"2019-09-10"},{"$f":"IF(DAY(SepSön1)=1,IF(AND(YEAR(SepSön1+10)=Kalenderår,MONTH(SepSön1+10)=9),SepSön1+10,\"\"),IF(AND(YEAR(SepSön1+17)=Kalenderår,MONTH(SepSön1+17)=9),SepSön1+17,\"\"))","v":"2019-09-11"},{"$f":"IF(DAY(SepSön1)=1,IF(AND(YEAR(SepSön1+11)=Kalenderår,MONTH(SepSön1+11)=9),SepSön1+11,\"\"),IF(AND(YEAR(SepSön1+18)=Kalenderår,MONTH(SepSön1+18)=9),SepSön1+18,\"\"))","v":"2019-09-12"},{"$f":"IF(DAY(SepSön1)=1,IF(AND(YEAR(SepSön1+12)=Kalenderår,MONTH(SepSön1+12)=9),SepSön1+12,\"\"),IF(AND(YEAR(SepSön1+19)=Kalenderår,MONTH(SepSön1+19)=9),SepSön1+19,\"\"))","v":"2019-09-13"},{"$f":"IF(DAY(SepSön1)=1,IF(AND(YEAR(SepSön1+13)=Kalenderår,MONTH(SepSön1+13)=9),SepSön1+13,\"\"),IF(AND(YEAR(SepSön1+20)=Kalenderår,MONTH(SepSön1+20)=9),SepSön1+20,\"\"))","v":"2019-09-14"},{"$f":"IF(DAY(SepSön1)=1,IF(AND(YEAR(SepSön1+14)=Kalenderår,MONTH(SepSön1+14)=9),SepSön1+14,\"\"),IF(AND(YEAR(SepSön1+21)=Kalenderår,MONTH(SepSön1+21)=9),SepSön1+21,\"\"))","v":"2019-09-15"},null,{"$f":"IF(DAY(OktSön1)=1,IF(AND(YEAR(OktSön1+8)=Kalenderår,MONTH(OktSön1+8)=10),OktSön1+8,\"\"),IF(AND(YEAR(OktSön1+15)=Kalenderår,MONTH(OktSön1+15)=10),OktSön1+15,\"\"))","v":"2019-10-14"},{"$f":"IF(DAY(OktSön1)=1,IF(AND(YEAR(OktSön1+9)=Kalenderår,MONTH(OktSön1+9)=10),OktSön1+9,\"\"),IF(AND(YEAR(OktSön1+16)=Kalenderår,MONTH(OktSön1+16)=10),OktSön1+16,\"\"))","v":"2019-10-15"},{"$f":"IF(DAY(OktSön1)=1,IF(AND(YEAR(OktSön1+10)=Kalenderår,MONTH(OktSön1+10)=10),OktSön1+10,\"\"),IF(AND(YEAR(OktSön1+17)=Kalenderår,MONTH(OktSön1+17)=10),OktSön1+17,\"\"))","v":"2019-10-16"},{"$f":"IF(DAY(OktSön1)=1,IF(AND(YEAR(OktSön1+11)=Kalenderår,MONTH(OktSön1+11)=10),OktSön1+11,\"\"),IF(AND(YEAR(OktSön1+18)=Kalenderår,MONTH(OktSön1+18)=10),OktSön1+18,\"\"))","v":"2019-10-17"},{"$f":"IF(DAY(OktSön1)=1,IF(AND(YEAR(OktSön1+12)=Kalenderår,MONTH(OktSön1+12)=10),OktSön1+12,\"\"),IF(AND(YEAR(OktSön1+19)=Kalenderår,MONTH(OktSön1+19)=10),OktSön1+19,\"\"))","v":"2019-10-18"},{"$f":"IF(DAY(OktSön1)=1,IF(AND(YEAR(OktSön1+13)=Kalenderår,MONTH(OktSön1+13)=10),OktSön1+13,\"\"),IF(AND(YEAR(OktSön1+20)=Kalenderår,MONTH(OktSön1+20)=10),OktSön1+20,\"\"))","v":"2019-10-19"},{"$f":"IF(DAY(OktSön1)=1,IF(AND(YEAR(OktSön1+14)=Kalenderår,MONTH(OktSön1+14)=10),OktSön1+14,\"\"),IF(AND(YEAR(OktSön1+21)=Kalenderår,MONTH(OktSön1+21)=10),OktSön1+21,\"\"))","v":"2019-10-20"}]
[null,null,{"$f":"IF(DAY(SepSön1)=1,IF(AND(YEAR(SepSön1+15)=Kalenderår,MONTH(SepSön1+15)=9),SepSön1+15,\"\"),IF(AND(YEAR(SepSön1+22)=Kalenderår,MONTH(SepSön1+22)=9),SepSön1+22,\"\"))","v":"2019-09-16"},{"$f":"IF(DAY(SepSön1)=1,IF(AND(YEAR(SepSön1+16)=Kalenderår,MONTH(SepSön1+16)=9),SepSön1+16,\"\"),IF(AND(YEAR(SepSön1+23)=Kalenderår,MONTH(SepSön1+23)=9),SepSön1+23,\"\"))","v":"2019-09-17"},{"$f":"IF(DAY(SepSön1)=1,IF(AND(YEAR(SepSön1+17)=Kalenderår,MONTH(SepSön1+17)=9),SepSön1+17,\"\"),IF(AND(YEAR(SepSön1+24)=Kalenderår,MONTH(SepSön1+24)=9),SepSön1+24,\"\"))","v":"2019-09-18"},{"$f":"IF(DAY(SepSön1)=1,IF(AND(YEAR(SepSön1+18)=Kalenderår,MONTH(SepSön1+18)=9),SepSön1+18,\"\"),IF(AND(YEAR(SepSön1+25)=Kalenderår,MONTH(SepSön1+25)=9),SepSön1+25,\"\"))","v":"2019-09-19"},{"$f":"IF(DAY(SepSön1)=1,IF(AND(YEAR(SepSön1+19)=Kalenderår,MONTH(SepSön1+19)=9),SepSön1+19,\"\"),IF(AND(YEAR(SepSön1+26)=Kalenderår,MONTH(SepSön1+26)=9),SepSön1+26,\"\"))","v":"2019-09-20"},{"$f":"IF(DAY(SepSön1)=1,IF(AND(YEAR(SepSön1+20)=Kalenderår,MONTH(SepSön1+20)=9),SepSön1+20,\"\"),IF(AND(YEAR(SepSön1+27)=Kalenderår,MONTH(SepSön1+27)=9),SepSön1+27,\"\"))","v":"2019-09-21"},{"$f":"IF(DAY(SepSön1)=1,IF(AND(YEAR(SepSön1+21)=Kalenderår,MONTH(SepSön1+21)=9),SepSön1+21,\"\"),IF(AND(YEAR(SepSön1+28)=Kalenderår,MONTH(SepSön1+28)=9),SepSön1+28,\"\"))","v":"2019-09-22"},null,{"$f":"IF(DAY(OktSön1)=1,IF(AND(YEAR(OktSön1+15)=Kalenderår,MONTH(OktSön1+15)=10),OktSön1+15,\"\"),IF(AND(YEAR(OktSön1+22)=Kalenderår,MONTH(OktSön1+22)=10),OktSön1+22,\"\"))","v":"2019-10-21"},{"$f":"IF(DAY(OktSön1)=1,IF(AND(YEAR(OktSön1+16)=Kalenderår,MONTH(OktSön1+16)=10),OktSön1+16,\"\"),IF(AND(YEAR(OktSön1+23)=Kalenderår,MONTH(OktSön1+23)=10),OktSön1+23,\"\"))","v":"2019-10-22"},{"$f":"IF(DAY(OktSön1)=1,IF(AND(YEAR(OktSön1+17)=Kalenderår,MONTH(OktSön1+17)=10),OktSön1+17,\"\"),IF(AND(YEAR(OktSön1+24)=Kalenderår,MONTH(OktSön1+24)=10),OktSön1+24,\"\"))","v":"2019-10-23"},{"$f":"IF(DAY(OktSön1)=1,IF(AND(YEAR(OktSön1+18)=Kalenderår,MONTH(OktSön1+18)=10),OktSön1+18,\"\"),IF(AND(YEAR(OktSön1+25)=Kalenderår,MONTH(OktSön1+25)=10),OktSön1+25,\"\"))","v":"2019-10-24"},{"$f":"IF(DAY(OktSön1)=1,IF(AND(YEAR(OktSön1+19)=Kalenderår,MONTH(OktSön1+19)=10),OktSön1+19,\"\"),IF(AND(YEAR(OktSön1+26)=Kalenderår,MONTH(OktSön1+26)=10),OktSön1+26,\"\"))","v":"2019-10-25"},{"$f":"IF(DAY(OktSön1)=1,IF(AND(YEAR(OktSön1+20)=Kalenderår,MONTH(OktSön1+20)=10),OktSön1+20,\"\"),IF(AND(YEAR(OktSön1+27)=Kalenderår,MONTH(OktSön1+27)=10),OktSön1+27,\"\"))","v":"2019-10-26"},{"$f":"IF(DAY(OktSön1)=1,IF(AND(YEAR(OktSön1+21)=Kalenderår,MONTH(OktSön1+21)=10),OktSön1+21,\"\"),IF(AND(YEAR(OktSön1+28)=Kalenderår,MONTH(OktSön1+28)=10),OktSön1+28,\"\"))","v":"2019-10-27"},{"$nulls":3},"123 Green Drive"]
[null,null,{"$f":"IF(DAY(SepSön1)=1,IF(AND(YEAR(SepSön1+22)=Kalenderår,MONTH(SepSön1+22)=9),SepSön1+22,\"\"),IF(AND(YEAR(SepSön1+29)=Kalenderår,MONTH(SepSön1+29)=9),SepSön1+29,\"\"))","v":"2019-09-23"},{"$f":"IF(DAY(SepSön1)=1,IF(AND(YEAR(SepSön1+23)=Kalenderår,MONTH(SepSön1+23)=9),SepSön1+23,\"\"),IF(AND(YEAR(SepSön1+30)=Kalenderår,MONTH(SepSön1+30)=9),SepSön1+30,\"\"))","v":"2019-09-24"},{"$f":"IF(DAY(SepSön1)=1,IF(AND(YEAR(SepSön1+24)=Kalenderår,MONTH(SepSön1+24)=9),SepSön1+24,\"\"),IF(AND(YEAR(SepSön1+31)=Kalenderår,MONTH(SepSön1+31)=9),SepSön1+31,\"\"))","v":"2019-09-25"},{"$f":"IF(DAY(SepSön1)=1,IF(AND(YEAR(SepSön1+25)=Kalenderår,MONTH(SepSön1+25)=9),SepSön1+25,\"\"),IF(AND(YEAR(SepSön1+32)=Kalenderår,MONTH(SepSön1+32)=9),SepSön1+32,\"\"))","v":"2019-09-26"},{"$f":"IF(DAY(SepSön1)=1,IF(AND(YEAR(SepSön1+26)=Kalenderår,MONTH(SepSön1+26)=9),SepSön1+26,\"\"),IF(AND(YEAR(SepSön1+33)=Kalenderår,MONTH(SepSön1+33)=9),SepSön1+33,\"\"))","v":"2019-09-27"},{"$f":"IF(DAY(SepSön1)=1,IF(AND(YEAR(SepSön1+27)=Kalenderår,MONTH(SepSön1+27)=9),SepSön1+27,\"\"),IF(AND(YEAR(SepSön1+34)=Kalenderår,MONTH(SepSön1+34)=9),SepSön1+34,\"\"))","v":"2019-09-28"},{"$f":"IF(DAY(SepSön1)=1,IF(AND(YEAR(SepSön1+28)=Kalenderår,MONTH(SepSön1+28)=9),SepSön1+28,\"\"),IF(AND(YEAR(SepSön1+35)=Kalenderår,MONTH(SepSön1+35)=9),SepSön1+35,\"\"))","v":"2019-09-29"},null,{"$f":"IF(DAY(OktSön1)=1,IF(AND(YEAR(OktSön1+22)=Kalenderår,MONTH(OktSön1+22)=10),OktSön1+22,\"\"),IF(AND(YEAR(OktSön1+29)=Kalenderår,MONTH(OktSön1+29)=10),OktSön1+29,\"\"))","v":"2019-10-28"},{"$f":"IF(DAY(OktSön1)=1,IF(AND(YEAR(OktSön1+23)=Kalenderår,MONTH(OktSön1+23)=10),OktSön1+23,\"\"),IF(AND(YEAR(OktSön1+30)=Kalenderår,MONTH(OktSön1+30)=10),OktSön1+30,\"\"))","v":"2019-10-29"},{"$f":"IF(DAY(OktSön1)=1,IF(AND(YEAR(OktSön1+24)=Kalenderår,MONTH(OktSön1+24)=10),OktSön1+24,\"\"),IF(AND(YEAR(OktSön1+31)=Kalenderår,MONTH(OktSön1+31)=10),OktSön1+31,\"\"))","v":"2019-10-30"},{"$f":"IF(DAY(OktSön1)=1,IF(AND(YEAR(OktSön1+25)=Kalenderår,MONTH(OktSön1+25)=10),OktSön1+25,\"\"),IF(AND(YEAR(OktSön1+32)=Kalenderår,MONTH(OktSön1+32)=10),OktSön1+32,\"\"))","v":"2019-10-31"},{"$f":"IF(DAY(OktSön1)=1,IF(AND(YEAR(OktSön1+26)=Kalenderår,MONTH(OktSön1+26)=10),OktSön1+26,\"\"),IF(AND(YEAR(OktSön1+33)=Kalenderår,MONTH(OktSön1+33)=10),OktSön1+33,\"\"))","v":""},{"$f":"IF(DAY(OktSön1)=1,IF(AND(YEAR(OktSön1+27)=Kalenderår,MONTH(OktSön1+27)=10),OktSön1+27,\"\"),IF(AND(YEAR(OktSön1+34)=Kalenderår,MONTH(OktSön1+34)=10),OktSön1+34,\"\"))","v":""},{"$f":"IF(DAY(OktSön1)=1,IF(AND(YEAR(OktSön1+28)=Kalenderår,MONTH(OktSön1+28)=10),OktSön1+28,\"\"),IF(AND(YEAR(OktSön1+35)=Kalenderår,MONTH(OktSön1+35)=10),OktSön1+35,\"\"))","v":""},{"$nulls":3},"Springfield, NY 76543"]
[null,null,{"$f":"IF(DAY(SepSön1)=1,IF(AND(YEAR(SepSön1+29)=Kalenderår,MONTH(SepSön1+29)=9),SepSön1+29,\"\"),IF(AND(YEAR(SepSön1+36)=Kalenderår,MONTH(SepSön1+36)=9),SepSön1+36,\"\"))","v":"2019-09-30"},{"$f":"IF(DAY(SepSön1)=1,IF(AND(YEAR(SepSön1+30)=Kalenderår,MONTH(SepSön1+30)=9),SepSön1+30,\"\"),IF(AND(YEAR(SepSön1+37)=Kalenderår,MONTH(SepSön1+37)=9),SepSön1+37,\"\"))","v":""},{"$f":"IF(DAY(SepSön1)=1,IF(AND(YEAR(SepSön1+31)=Kalenderår,MONTH(SepSön1+31)=9),SepSön1+31,\"\"),IF(AND(YEAR(SepSön1+38)=Kalenderår,MONTH(SepSön1+38)=9),SepSön1+38,\"\"))","v":""},{"$f":"IF(DAY(SepSön1)=1,IF(AND(YEAR(SepSön1+32)=Kalenderår,MONTH(SepSön1+32)=9),SepSön1+32,\"\"),IF(AND(YEAR(SepSön1+39)=Kalenderår,MONTH(SepSön1+39)=9),SepSön1+39,\"\"))","v":""},{"$f":"IF(DAY(SepSön1)=1,IF(AND(YEAR(SepSön1+33)=Kalenderår,MONTH(SepSön1+33)=9),SepSön1+33,\"\"),IF(AND(YEAR(SepSön1+40)=Kalenderår,MONTH(SepSön1+40)=9),SepSön1+40,\"\"))","v":""},{"$f":"IF(DAY(SepSön1)=1,IF(AND(YEAR(SepSön1+34)=Kalenderår,MONTH(SepSön1+34)=9),SepSön1+34,\"\"),IF(AND(YEAR(SepSön1+41)=Kalenderår,MONTH(SepSön1+41)=9),SepSön1+41,\"\"))","v":""},{"$f":"IF(DAY(SepSön1)=1,IF(AND(YEAR(SepSön1+35)=Kalenderår,MONTH(SepSön1+35)=9),SepSön1+35,\"\"),IF(AND(YEAR(SepSön1+42)=Kalenderår,MONTH(SepSön1+42)=9),SepSön1+42,\"\"))","v":""},null,{"$f":"IF(DAY(OktSön1)=1,IF(AND(YEAR(OktSön1+29)=Kalenderår,MONTH(OktSön1+29)=10),OktSön1+29,\"\"),IF(AND(YEAR(OktSön1+36)=Kalenderår,MONTH(OktSön1+36)=10),OktSön1+36,\"\"))","v":""},{"$f":"IF(DAY(OktSön1)=1,IF(AND(YEAR(OktSön1+30)=Kalenderår,MONTH(OktSön1+30)=10),OktSön1+30,\"\"),IF(AND(YEAR(OktSön1+37)=Kalenderår,MONTH(OktSön1+37)=10),OktSön1+37,\"\"))","v":""},{"$f":"IF(DAY(OktSön1)=1,IF(AND(YEAR(OktSön1+31)=Kalenderår,MONTH(OktSön1+31)=10),OktSön1+31,\"\"),IF(AND(YEAR(OktSön1+38)=Kalenderår,MONTH(OktSön1+38)=10),OktSön1+38,\"\"))","v":""},{"$f":"IF(DAY(OktSön1)=1,IF(AND(YEAR(OktSön1+32)=Kalenderår,MONTH(OktSön1+32)=10),OktSön1+32,\"\"),IF(AND(YEAR(OktSön1+39)=Kalenderår,MONTH(OktSön1+39)=10),OktSön1+39,\"\"))","v":""},{"$f":"IF(DAY(OktSön1)=1,IF(AND(YEAR(OktSön1+33)=Kalenderår,MONTH(OktSön1+33)=10),OktSön1+33,\"\"),IF(AND(YEAR(OktSön1+40)=Kalenderår,MONTH(OktSön1+40)=10),OktSön1+40,\"\"))","v":""},{"$f":"IF(DAY(OktSön1)=1,IF(AND(YEAR(OktSön1+34)=Kalenderår,MONTH(OktSön1+34)=10),OktSön1+34,\"\"),IF(AND(YEAR(OktSön1+41)=Kalenderår,MONTH(OktSön1+41)=10),OktSön1+41,\"\"))","v":""},{"$f":"IF(DAY(OktSön1)=1,IF(AND(YEAR(OktSön1+35)=Kalenderår,MONTH(OktSön1+35)=10),OktSön1+35,\"\"),IF(AND(YEAR(OktSön1+42)=Kalenderår,MONTH(OktSön1+42)=10),OktSön1+42,\"\"))","v":""}]
[{"$nulls":20},"456.555.0123"]
[null,null,"NOVEMBER",{"$nulls":7},"DECEMBER",{"$nulls":9},"info@contoso.com"]
[null,null,"M","T","O","T","F","L","S",null,"M","T","O","T","F","L","S",{"$nulls":3},"www.contoso.com"]
[null,null,{"$f":"IF(DAY(NovSön1)=1,\"\",IF(AND(YEAR(NovSön1+1)=Kalenderår,MONTH(NovSön1+1)=11),NovSön1+1,\"\"))","v":""},{"$f":"IF(DAY(NovSön1)=1,\"\",IF(AND(YEAR(NovSön1+2)=Kalenderår,MONTH(NovSön1+2)=11),NovSön1+2,\"\"))","v":""},{"$f":"IF(DAY(NovSön1)=1,\"\",IF(AND(YEAR(NovSön1+3)=Kalenderår,MONTH(NovSön1+3)=11),NovSön1+3,\"\"))","v":""},{"$f":"IF(DAY(NovSön1)=1,\"\",IF(AND(YEAR(NovSön1+4)=Kalenderår,MONTH(NovSön1+4)=11),NovSön1+4,\"\"))","v":""},{"$f":"IF(DAY(NovSön1)=1,\"\",IF(AND(YEAR(NovSön1+5)=Kalenderår,MONTH(NovSön1+5)=11),NovSön1+5,\"\"))","v":"2019-11-01"},{"$f":"IF(DAY(NovSön1)=1,\"\",IF(AND(YEAR(NovSön1+6)=Kalenderår,MONTH(NovSön1+6)=11),NovSön1+6,\"\"))","v":"2019-11-02"},{"$f":"IF(DAY(NovSön1)=1,IF(AND(YEAR(NovSön1)=Kalenderår,MONTH(NovSön1)=11),NovSön1,\"\"),IF(AND(YEAR(NovSön1+7)=Kalenderår,MONTH(NovSön1+7)=11),NovSön1+7,\"\"))","v":"2019-11-03"},null,{"$f":"IF(DAY(DecSön1)=1,\"\",IF(AND(YEAR(DecSön1+1)=Kalenderår,MONTH(DecSön1+1)=12),DecSön1+1,\"\"))","v":""},{"$f":"IF(DAY(DecSön1)=1,\"\",IF(AND(YEAR(DecSön1+2)=Kalenderår,MONTH(DecSön1+2)=12),DecSön1+2,\"\"))","v":""},{"$f":"IF(DAY(DecSön1)=1,\"\",IF(AND(YEAR(DecSön1+3)=Kalenderår,MONTH(DecSön1+3)=12),DecSön1+3,\"\"))","v":""},{"$f":"IF(DAY(DecSön1)=1,\"\",IF(AND(YEAR(DecSön1+4)=Kalenderår,MONTH(DecSön1+4)=12),DecSön1+4,\"\"))","v":""},{"$f":"IF(DAY(DecSön1)=1,\"\",IF(AND(YEAR(DecSön1+5)=Kalenderår,MONTH(DecSön1+5)=12),DecSön1+5,\"\"))","v":""},{"$f":"IF(DAY(DecSön1)=1,\"\",IF(AND(YEAR(DecSön1+6)=Kalenderår,MONTH(DecSön1+6)=12),DecSön1+6,\"\"))","v":""},{"$f":"IF(DAY(DecSön1)=1,IF(AND(YEAR(DecSön1)=Kalenderår,MONTH(DecSön1)=12),DecSön1,\"\"),IF(AND(YEAR(DecSön1+7)=Kalenderår,MONTH(DecSön1+7)=12),DecSön1+7,\"\"))","v":"2019-12-01"}]
[null,null,{"$f":"IF(DAY(NovSön1)=1,IF(AND(YEAR(NovSön1+1)=Kalenderår,MONTH(NovSön1+1)=11),NovSön1+1,\"\"),IF(AND(YEAR(NovSön1+8)=Kalenderår,MONTH(NovSön1+8)=11),NovSön1+8,\"\"))","v":"2019-11-04"},{"$f":"IF(DAY(NovSön1)=1,IF(AND(YEAR(NovSön1+2)=Kalenderår,MONTH(NovSön1+2)=11),NovSön1+2,\"\"),IF(AND(YEAR(NovSön1+9)=Kalenderår,MONTH(NovSön1+9)=11),NovSön1+9,\"\"))","v":"2019-11-05"},{"$f":"IF(DAY(NovSön1)=1,IF(AND(YEAR(NovSön1+3)=Kalenderår,MONTH(NovSön1+3)=11),NovSön1+3,\"\"),IF(AND(YEAR(NovSön1+10)=Kalenderår,MONTH(NovSön1+10)=11),NovSön1+10,\"\"))","v":"2019-11-06"},{"$f":"IF(DAY(NovSön1)=1,IF(AND(YEAR(NovSön1+4)=Kalenderår,MONTH(NovSön1+4)=11),NovSön1+4,\"\"),IF(AND(YEAR(NovSön1+11)=Kalenderår,MONTH(NovSön1+11)=11),NovSön1+11,\"\"))","v":"2019-11-07"},{"$f":"IF(DAY(NovSön1)=1,IF(AND(YEAR(NovSön1+5)=Kalenderår,MONTH(NovSön1+5)=11),NovSön1+5,\"\"),IF(AND(YEAR(NovSön1+12)=Kalenderår,MONTH(NovSön1+12)=11),NovSön1+12,\"\"))","v":"2019-11-08"},{"$f":"IF(DAY(NovSön1)=1,IF(AND(YEAR(NovSön1+6)=Kalenderår,MONTH(NovSön1+6)=11),NovSön1+6,\"\"),IF(AND(YEAR(NovSön1+13)=Kalenderår,MONTH(NovSön1+13)=11),NovSön1+13,\"\"))","v":"2019-11-09"},{"$f":"IF(DAY(NovSön1)=1,IF(AND(YEAR(NovSön1+7)=Kalenderår,MONTH(NovSön1+7)=11),NovSön1+7,\"\"),IF(AND(YEAR(NovSön1+14)=Kalenderår,MONTH(NovSön1+14)=11),NovSön1+14,\"\"))","v":"2019-11-10"},null,{"$f":"IF(DAY(DecSön1)=1,IF(AND(YEAR(DecSön1+1)=Kalenderår,MONTH(DecSön1+1)=12),DecSön1+1,\"\"),IF(AND(YEAR(DecSön1+8)=Kalenderår,MONTH(DecSön1+8)=12),DecSön1+8,\"\"))","v":"2019-12-02"},{"$f":"IF(DAY(DecSön1)=1,IF(AND(YEAR(DecSön1+2)=Kalenderår,MONTH(DecSön1+2)=12),DecSön1+2,\"\"),IF(AND(YEAR(DecSön1+9)=Kalenderår,MONTH(DecSön1+9)=12),DecSön1+9,\"\"))","v":"2019-12-03"},{"$f":"IF(DAY(DecSön1)=1,IF(AND(YEAR(DecSön1+3)=Kalenderår,MONTH(DecSön1+3)=12),DecSön1+3,\"\"),IF(AND(YEAR(DecSön1+10)=Kalenderår,MONTH(DecSön1+10)=12),DecSön1+10,\"\"))","v":"2019-12-04"},{"$f":"IF(DAY(DecSön1)=1,IF(AND(YEAR(DecSön1+4)=Kalenderår,MONTH(DecSön1+4)=12),DecSön1+4,\"\"),IF(AND(YEAR(DecSön1+11)=Kalenderår,MONTH(DecSön1+11)=12),DecSön1+11,\"\"))","v":"2019-12-05"},{"$f":"IF(DAY(DecSön1)=1,IF(AND(YEAR(DecSön1+5)=Kalenderår,MONTH(DecSön1+5)=12),DecSön1+5,\"\"),IF(AND(YEAR(DecSön1+12)=Kalenderår,MONTH(DecSön1+12)=12),DecSön1+12,\"\"))","v":"2019-12-06"},{"$f":"IF(DAY(DecSön1)=1,IF(AND(YEAR(DecSön1+6)=Kalenderår,MONTH(DecSön1+6)=12),DecSön1+6,\"\"),IF(AND(YEAR(DecSön1+13)=Kalenderår,MONTH(DecSön1+13)=12),DecSön1+13,\"\"))","v":"2019-12-07"},{"$f":"IF(DAY(DecSön1)=1,IF(AND(YEAR(DecSön1+7)=Kalenderår,MONTH(DecSön1+7)=12),DecSön1+7,\"\"),IF(AND(YEAR(DecSön1+14)=Kalenderår,MONTH(DecSön1+14)=12),DecSön1+14,\"\"))","v":"2019-12-08"}]
[null,null,{"$f":"IF(DAY(NovSön1)=1,IF(AND(YEAR(NovSön1+8)=Kalenderår,MONTH(NovSön1+8)=11),NovSön1+8,\"\"),IF(AND(YEAR(NovSön1+15)=Kalenderår,MONTH(NovSön1+15)=11),NovSön1+15,\"\"))","v":"2019-11-11"},{"$f":"IF(DAY(NovSön1)=1,IF(AND(YEAR(NovSön1+9)=Kalenderår,MONTH(NovSön1+9)=11),NovSön1+9,\"\"),IF(AND(YEAR(NovSön1+16)=Kalenderår,MONTH(NovSön1+16)=11),NovSön1+16,\"\"))","v":"2019-11-12"},{"$f":"IF(DAY(NovSön1)=1,IF(AND(YEAR(NovSön1+10)=Kalenderår,MONTH(NovSön1+10)=11),NovSön1+10,\"\"),IF(AND(YEAR(NovSön1+17)=Kalenderår,MONTH(NovSön1+17)=11),NovSön1+17,\"\"))","v":"2019-11-13"},{"$f":"IF(DAY(NovSön1)=1,IF(AND(YEAR(NovSön1+11)=Kalenderår,MONTH(NovSön1+11)=11),NovSön1+11,\"\"),IF(AND(YEAR(NovSön1+18)=Kalenderår,MONTH(NovSön1+18)=11),NovSön1+18,\"\"))","v":"2019-11-14"},{"$f":"IF(DAY(NovSön1)=1,IF(AND(YEAR(NovSön1+12)=Kalenderår,MONTH(NovSön1+12)=11),NovSön1+12,\"\"),IF(AND(YEAR(NovSön1+19)=Kalenderår,MONTH(NovSön1+19)=11),NovSön1+19,\"\"))","v":"2019-11-15"},{"$f":"IF(DAY(NovSön1)=1,IF(AND(YEAR(NovSön1+13)=Kalenderår,MONTH(NovSön1+13)=11),NovSön1+13,\"\"),IF(AND(YEAR(NovSön1+20)=Kalenderår,MONTH(NovSön1+20)=11),NovSön1+20,\"\"))","v":"2019-11-16"},{"$f":"IF(DAY(NovSön1)=1,IF(AND(YEAR(NovSön1+14)=Kalenderår,MONTH(NovSön1+14)=11),NovSön1+14,\"\"),IF(AND(YEAR(NovSön1+21)=Kalenderår,MONTH(NovSön1+21)=11),NovSön1+21,\"\"))","v":"2019-11-17"},null,{"$f":"IF(DAY(DecSön1)=1,IF(AND(YEAR(DecSön1+8)=Kalenderår,MONTH(DecSön1+8)=12),DecSön1+8,\"\"),IF(AND(YEAR(DecSön1+15)=Kalenderår,MONTH(DecSön1+15)=12),DecSön1+15,\"\"))","v":"2019-12-09"},{"$f":"IF(DAY(DecSön1)=1,IF(AND(YEAR(DecSön1+9)=Kalenderår,MONTH(DecSön1+9)=12),DecSön1+9,\"\"),IF(AND(YEAR(DecSön1+16)=Kalenderår,MONTH(DecSön1+16)=12),DecSön1+16,\"\"))","v":"2019-12-10"},{"$f":"IF(DAY(DecSön1)=1,IF(AND(YEAR(DecSön1+10)=Kalenderår,MONTH(DecSön1+10)=12),DecSön1+10,\"\"),IF(AND(YEAR(DecSön1+17)=Kalenderår,MONTH(DecSön1+17)=12),DecSön1+17,\"\"))","v":"2019-12-11"},{"$f":"IF(DAY(DecSön1)=1,IF(AND(YEAR(DecSön1+11)=Kalenderår,MONTH(DecSön1+11)=12),DecSön1+11,\"\"),IF(AND(YEAR(DecSön1+18)=Kalenderår,MONTH(DecSön1+18)=12),DecSön1+18,\"\"))","v":"2019-12-12"},{"$f":"IF(DAY(DecSön1)=1,IF(AND(YEAR(DecSön1+12)=Kalenderår,MONTH(DecSön1+12)=12),DecSön1+12,\"\"),IF(AND(YEAR(DecSön1+19)=Kalenderår,MONTH(DecSön1+19)=12),DecSön1+19,\"\"))","v":"2019-12-13"},{"$f":"IF(DAY(DecSön1)=1,IF(AND(YEAR(DecSön1+13)=Kalenderår,MONTH(DecSön1+13)=12),DecSön1+13,\"\"),IF(AND(YEAR(DecSön1+20)=Kalenderår,MONTH(DecSön1+20)=12),DecSön1+20,\"\"))","v":"2019-12-14"},{"$f":"IF(DAY(DecSön1)=1,IF(AND(YEAR(DecSön1+14)=Kalenderår,MONTH(DecSön1+14)=12),DecSön1+14,\"\"),IF(AND(YEAR(DecSön1+21)=Kalenderår,MONTH(DecSön1+21)=12),DecSön1+21,\"\"))","v":"2019-12-15"}]
[null,null,{"$f":"IF(DAY(NovSön1)=1,IF(AND(YEAR(NovSön1+15)=Kalenderår,MONTH(NovSön1+15)=11),NovSön1+15,\"\"),IF(AND(YEAR(NovSön1+22)=Kalenderår,MONTH(NovSön1+22)=11),NovSön1+22,\"\"))","v":"2019-11-18"},{"$f":"IF(DAY(NovSön1)=1,IF(AND(YEAR(NovSön1+16)=Kalenderår,MONTH(NovSön1+16)=11),NovSön1+16,\"\"),IF(AND(YEAR(NovSön1+23)=Kalenderår,MONTH(NovSön1+23)=11),NovSön1+23,\"\"))","v":"2019-11-19"},{"$f":"IF(DAY(NovSön1)=1,IF(AND(YEAR(NovSön1+17)=Kalenderår,MONTH(NovSön1+17)=11),NovSön1+17,\"\"),IF(AND(YEAR(NovSön1+24)=Kalenderår,MONTH(NovSön1+24)=11),NovSön1+24,\"\"))","v":"2019-11-20"},{"$f":"IF(DAY(NovSön1)=1,IF(AND(YEAR(NovSön1+18)=Kalenderår,MONTH(NovSön1+18)=11),NovSön1+18,\"\"),IF(AND(YEAR(NovSön1+25)=Kalenderår,MONTH(NovSön1+25)=11),NovSön1+25,\"\"))","v":"2019-11-21"},{"$f":"IF(DAY(NovSön1)=1,IF(AND(YEAR(NovSön1+19)=Kalenderår,MONTH(NovSön1+19)=11),NovSön1+19,\"\"),IF(AND(YEAR(NovSön1+26)=Kalenderår,MONTH(NovSön1+26)=11),NovSön1+26,\"\"))","v":"2019-11-22"},{"$f":"IF(DAY(NovSön1)=1,IF(AND(YEAR(NovSön1+20)=Kalenderår,MONTH(NovSön1+20)=11),NovSön1+20,\"\"),IF(AND(YEAR(NovSön1+27)=Kalenderår,MONTH(NovSön1+27)=11),NovSön1+27,\"\"))","v":"2019-11-23"},{"$f":"IF(DAY(NovSön1)=1,IF(AND(YEAR(NovSön1+21)=Kalenderår,MONTH(NovSön1+21)=11),NovSön1+21,\"\"),IF(AND(YEAR(NovSön1+28)=Kalenderår,MONTH(NovSön1+28)=11),NovSön1+28,\"\"))","v":"2019-11-24"},null,{"$f":"IF(DAY(DecSön1)=1,IF(AND(YEAR(DecSön1+15)=Kalenderår,MONTH(DecSön1+15)=12),DecSön1+15,\"\"),IF(AND(YEAR(DecSön1+22)=Kalenderår,MONTH(DecSön1+22)=12),DecSön1+22,\"\"))","v":"2019-12-16"},{"$f":"IF(DAY(DecSön1)=1,IF(AND(YEAR(DecSön1+16)=Kalenderår,MONTH(DecSön1+16)=12),DecSön1+16,\"\"),IF(AND(YEAR(DecSön1+23)=Kalenderår,MONTH(DecSön1+23)=12),DecSön1+23,\"\"))","v":"2019-12-17"},{"$f":"IF(DAY(DecSön1)=1,IF(AND(YEAR(DecSön1+17)=Kalenderår,MONTH(DecSön1+17)=12),DecSön1+17,\"\"),IF(AND(YEAR(DecSön1+24)=Kalenderår,MONTH(DecSön1+24)=12),DecSön1+24,\"\"))","v":"2019-12-18"},{"$f":"IF(DAY(DecSön1)=1,IF(AND(YEAR(DecSön1+18)=Kalenderår,MONTH(DecSön1+18)=12),DecSön1+18,\"\"),IF(AND(YEAR(DecSön1+25)=Kalenderår,MONTH(DecSön1+25)=12),DecSön1+25,\"\"))","v":"2019-12-19"},{"$f":"IF(DAY(DecSön1)=1,IF(AND(YEAR(DecSön1+19)=Kalenderår,MONTH(DecSön1+19)=12),DecSön1+19,\"\"),IF(AND(YEAR(DecSön1+26)=Kalenderår,MONTH(DecSön1+26)=12),DecSön1+26,\"\"))","v":"2019-12-20"},{"$f":"IF(DAY(DecSön1)=1,IF(AND(YEAR(DecSön1+20)=Kalenderår,MONTH(DecSön1+20)=12),DecSön1+20,\"\"),IF(AND(YEAR(DecSön1+27)=Kalenderår,MONTH(DecSön1+27)=12),DecSön1+27,\"\"))","v":"2019-12-21"},{"$f":"IF(DAY(DecSön1)=1,IF(AND(YEAR(DecSön1+21)=Kalenderår,MONTH(DecSön1+21)=12),DecSön1+21,\"\"),IF(AND(YEAR(DecSön1+28)=Kalenderår,MONTH(DecSön1+28)=12),DecSön1+28,\"\"))","v":"2019-12-22"}]
[null,null,{"$f":"IF(DAY(NovSön1)=1,IF(AND(YEAR(NovSön1+22)=Kalenderår,MONTH(NovSön1+22)=11),NovSön1+22,\"\"),IF(AND(YEAR(NovSön1+29)=Kalenderår,MONTH(NovSön1+29)=11),NovSön1+29,\"\"))","v":"2019-11-25"},{"$f":"IF(DAY(NovSön1)=1,IF(AND(YEAR(NovSön1+23)=Kalenderår,MONTH(NovSön1+23)=11),NovSön1+23,\"\"),IF(AND(YEAR(NovSön1+30)=Kalenderår,MONTH(NovSön1+30)=11),NovSön1+30,\"\"))","v":"2019-11-26"},{"$f":"IF(DAY(NovSön1)=1,IF(AND(YEAR(NovSön1+24)=Kalenderår,MONTH(NovSön1+24)=11),NovSön1+24,\"\"),IF(AND(YEAR(NovSön1+31)=Kalenderår,MONTH(NovSön1+31)=11),NovSön1+31,\"\"))","v":"2019-11-27"},{"$f":"IF(DAY(NovSön1)=1,IF(AND(YEAR(NovSön1+25)=Kalenderår,MONTH(NovSön1+25)=11),NovSön1+25,\"\"),IF(AND(YEAR(NovSön1+32)=Kalenderår,MONTH(NovSön1+32)=11),NovSön1+32,\"\"))","v":"2019-11-28"},{"$f":"IF(DAY(NovSön1)=1,IF(AND(YEAR(NovSön1+26)=Kalenderår,MONTH(NovSön1+26)=11),NovSön1+26,\"\"),IF(AND(YEAR(NovSön1+33)=Kalenderår,MONTH(NovSön1+33)=11),NovSön1+33,\"\"))","v":"2019-11-29"},{"$f":"IF(DAY(NovSön1)=1,IF(AND(YEAR(NovSön1+27)=Kalenderår,MONTH(NovSön1+27)=11),NovSön1+27,\"\"),IF(AND(YEAR(NovSön1+34)=Kalenderår,MONTH(NovSön1+34)=11),NovSön1+34,\"\"))","v":"2019-11-30"},{"$f":"IF(DAY(NovSön1)=1,IF(AND(YEAR(NovSön1+28)=Kalenderår,MONTH(NovSön1+28)=11),NovSön1+28,\"\"),IF(AND(YEAR(NovSön1+35)=Kalenderår,MONTH(NovSön1+35)=11),NovSön1+35,\"\"))","v":""},null,{"$f":"IF(DAY(DecSön1)=1,IF(AND(YEAR(DecSön1+22)=Kalenderår,MONTH(DecSön1+22)=12),DecSön1+22,\"\"),IF(AND(YEAR(DecSön1+29)=Kalenderår,MONTH(DecSön1+29)=12),DecSön1+29,\"\"))","v":"2019-12-23"},{"$f":"IF(DAY(DecSön1)=1,IF(AND(YEAR(DecSön1+23)=Kalenderår,MONTH(DecSön1+23)=12),DecSön1+23,\"\"),IF(AND(YEAR(DecSön1+30)=Kalenderår,MONTH(DecSön1+30)=12),DecSön1+30,\"\"))","v":"2019-12-24"},{"$f":"IF(DAY(DecSön1)=1,IF(AND(YEAR(DecSön1+24)=Kalenderår,MONTH(DecSön1+24)=12),DecSön1+24,\"\"),IF(AND(YEAR(DecSön1+31)=Kalenderår,MONTH(DecSön1+31)=12),DecSön1+31,\"\"))","v":"2019-12-25"},{"$f":"IF(DAY(DecSön1)=1,IF(AND(YEAR(DecSön1+25)=Kalenderår,MONTH(DecSön1+25)=12),DecSön1+25,\"\"),IF(AND(YEAR(DecSön1+32)=Kalenderår,MONTH(DecSön1+32)=12),DecSön1+32,\"\"))","v":"2019-12-26"},{"$f":"IF(DAY(DecSön1)=1,IF(AND(YEAR(DecSön1+26)=Kalenderår,MONTH(DecSön1+26)=12),DecSön1+26,\"\"),IF(AND(YEAR(DecSön1+33)=Kalenderår,MONTH(DecSön1+33)=12),DecSön1+33,\"\"))","v":"2019-12-27"},{"$f":"IF(DAY(DecSön1)=1,IF(AND(YEAR(DecSön1+27)=Kalenderår,MONTH(DecSön1+27)=12),DecSön1+27,\"\"),IF(AND(YEAR(DecSön1+34)=Kalenderår,MONTH(DecSön1+34)=12),DecSön1+34,\"\"))","v":"2019-12-28"},{"$f":"IF(DAY(DecSön1)=1,IF(AND(YEAR(DecSön1+28)=Kalenderår,MONTH(DecSön1+28)=12),DecSön1+28,\"\"),IF(AND(YEAR(DecSön1+35)=Kalenderår,MONTH(DecSön1+35)=12),DecSön1+35,\"\"))","v":"2019-12-29"}]
[null,null,{"$f":"IF(DAY(NovSön1)=1,IF(AND(YEAR(NovSön1+29)=Kalenderår,MONTH(NovSön1+29)=11),NovSön1+29,\"\"),IF(AND(YEAR(NovSön1+36)=Kalenderår,MONTH(NovSön1+36)=11),NovSön1+36,\"\"))","v":""},{"$f":"IF(DAY(NovSön1)=1,IF(AND(YEAR(NovSön1+30)=Kalenderår,MONTH(NovSön1+30)=11),NovSön1+30,\"\"),IF(AND(YEAR(NovSön1+37)=Kalenderår,MONTH(NovSön1+37)=11),NovSön1+37,\"\"))","v":""},{"$f":"IF(DAY(NovSön1)=1,IF(AND(YEAR(NovSön1+31)=Kalenderår,MONTH(NovSön1+31)=11),NovSön1+31,\"\"),IF(AND(YEAR(NovSön1+38)=Kalenderår,MONTH(NovSön1+38)=11),NovSön1+38,\"\"))","v":""},{"$f":"IF(DAY(NovSön1)=1,IF(AND(YEAR(NovSön1+32)=Kalenderår,MONTH(NovSön1+32)=11),NovSön1+32,\"\"),IF(AND(YEAR(NovSön1+39)=Kalenderår,MONTH(NovSön1+39)=11),NovSön1+39,\"\"))","v":""},{"$f":"IF(DAY(NovSön1)=1,IF(AND(YEAR(NovSön1+33)=Kalenderår,MONTH(NovSön1+33)=11),NovSön1+33,\"\"),IF(AND(YEAR(NovSön1+40)=Kalenderår,MONTH(NovSön1+40)=11),NovSön1+40,\"\"))","v":""},{"$f":"IF(DAY(NovSön1)=1,IF(AND(YEAR(NovSön1+34)=Kalenderår,MONTH(NovSön1+34)=11),NovSön1+34,\"\"),IF(AND(YEAR(NovSön1+41)=Kalenderår,MONTH(NovSön1+41)=11),NovSön1+41,\"\"))","v":""},{"$f":"IF(DAY(NovSön1)=1,IF(AND(YEAR(NovSön1+35)=Kalenderår,MONTH(NovSön1+35)=11),NovSön1+35,\"\"),IF(AND(YEAR(NovSön1+42)=Kalenderår,MONTH(NovSön1+42)=11),NovSön1+42,\"\"))","v":""},null,{"$f":"IF(DAY(DecSön1)=1,IF(AND(YEAR(DecSön1+29)=Kalenderår,MONTH(DecSön1+29)=12),DecSön1+29,\"\"),IF(AND(YEAR(DecSön1+36)=Kalenderår,MONTH(DecSön1+36)=12),DecSön1+36,\"\"))","v":"2019-12-30"},{"$f":"IF(DAY(DecSön1)=1,IF(AND(YEAR(DecSön1+30)=Kalenderår,MONTH(DecSön1+30)=12),DecSön1+30,\"\"),IF(AND(YEAR(DecSön1+37)=Kalenderår,MONTH(DecSön1+37)=12),DecSön1+37,\"\"))","v":"2019-12-31"},{"$f":"IF(DAY(DecSön1)=1,IF(AND(YEAR(DecSön1+31)=Kalenderår,MONTH(DecSön1+31)=12),DecSön1+31,\"\"),IF(AND(YEAR(DecSön1+38)=Kalenderår,MONTH(DecSön1+38)=12),DecSön1+38,\"\"))","v":""},{"$f":"IF(DAY(DecSön1)=1,IF(AND(YEAR(DecSön1+32)=Kalenderår,MONTH(DecSön1+32)=12),DecSön1+32,\"\"),IF(AND(YEAR(DecSön1+39)=Kalenderår,MONTH(DecSön1+39)=12),DecSön1+39,\"\"))","v":""},{"$f":"IF(DAY(DecSön1)=1,IF(AND(YEAR(DecSön1+33)=Kalenderår,MONTH(DecSön1+33)=12),DecSön1+33,\"\"),IF(AND(YEAR(DecSön1+40)=Kalenderår,MONTH(DecSön1+40)=12),DecSön1+40,\"\"))","v":""},{"$f":"IF(DAY(DecSön1)=1,IF(AND(YEAR(DecSön1+34)=Kalenderår,MONTH(DecSön1+34)=12),DecSön1+34,\"\"),IF(AND(YEAR(DecSön1+41)=Kalenderår,MONTH(DecSön1+41)=12),DecSön1+41,\"\"))","v":""},{"$f":"IF(DAY(DecSön1)=1,IF(AND(YEAR(DecSön1+35)=Kalenderår,MONTH(DecSön1+35)=12),DecSön1+35,\"\"),IF(AND(YEAR(DecSön1+42)=Kalenderår,MONTH(DecSön1+42)=12),DecSön1+42,\"\"))","v":""}]